{"text_format":"3","workbook":"xlsx","n_sheets":1,"sheets":["Calendar familial"],"not_rendered":{"images":2,"defined_names":15},"read":"whole","date_system":"1900"}

{"sheet":"Calendar familial","index":0,"n_rows":49,"n_cols":36,"rows_kept":49,"merged":[[2,3,2,29],[2,30,2,34],[5,3,5,6],[5,7,5,16],[5,20,5,34],[6,3,6,6],[6,7,6,16],[6,20,6,34],[7,3,7,6],[7,7,7,16],[7,20,7,34],[8,3,8,6],[8,7,8,16],[8,20,8,34],[9,3,9,6],[9,7,9,16],[9,20,9,34],[10,3,10,6],[10,7,10,16],[10,20,10,34],[11,3,11,6],[11,7,11,16],[11,20,11,34],[12,3,12,6],[12,7,12,16],[12,20,12,34],[13,3,13,6],[13,7,13,16],[13,20,13,34],[14,3,14,6],[14,7,14,16],[14,20,14,34],[15,3,15,6],[15,7,15,16],[15,20,15,34],[16,3,16,6],[16,7,16,16],[16,20,16,34],[17,3,17,6],[17,7,17,16],[17,20,17,34],[18,3,18,6],[18,7,18,16],[18,20,18,34],[19,3,19,6],[19,7,19,16],[19,20,19,34],[20,3,20,4],[21,3,21,4],[23,2,23,8],[23,11,23,17],[23,20,23,26],[23,29,23,35],[32,2,32,8],[32,11,32,17],[32,20,32,26],[32,29,32,35],[41,2,41,8],[41,11,41,17],[41,20,41,26],[41,29,41,35]]}
[]
[]
[{"$nulls":3},"Calendarul familiei Preda",{"$nulls":26},{"$f":"YEAR(TODAY())","v":2019}]
[]
[{"$nulls":3},"Date importante",{"$nulls":16},"Note"]
[{"$nulls":3},{"$f":"DATE(YEAR(TODAY()),1,1)","v":"2019-01-01"},{"$nulls":3},"Anul Nou"]
[{"$nulls":3},{"$f":"DATE(YEAR(TODAY()),3,25)","v":"2019-03-25"},{"$nulls":3},"Ziua de naștere a lui Vlad"]
{"$rows_empty":16}
[null,null,{"$f":"DATE(AnulCalendaristic,1,1)","v":"2019-01-01"},{"$nulls":8},{"$f":"DATE(AnulCalendaristic,2,1)","v":"2019-02-01"},{"$nulls":8},{"$f":"DATE(AnulCalendaristic,3,1)","v":"2019-03-01"},{"$nulls":8},{"$f":"DATE(AnulCalendaristic,4,1)","v":"2019-04-01"}]
[null,null,"L","M","M","J","V","S","D",null,null,"L","M","M","J","V","S","D",null,null,"L","M","M","J","V","S","D",null,null,"L","M","M","J","V","S","D"]
[null,null,{"$f":"IF(DAY(IanDum1)=1,\"\",IF(AND(YEAR(IanDum1+1)=AnulCalendaristic,MONTH(IanDum1+1)=1),IanDum1+1,\"\"))","v":""},{"$f":"IF(DAY(IanDum1)=1,\"\",IF(AND(YEAR(IanDum1+2)=AnulCalendaristic,MONTH(IanDum1+2)=1),IanDum1+2,\"\"))","v":"2019-01-01"},{"$f":"IF(DAY(IanDum1)=1,\"\",IF(AND(YEAR(IanDum1+3)=AnulCalendaristic,MONTH(IanDum1+3)=1),IanDum1+3,\"\"))","v":"2019-01-02"},{"$f":"IF(DAY(IanDum1)=1,\"\",IF(AND(YEAR(IanDum1+4)=AnulCalendaristic,MONTH(IanDum1+4)=1),IanDum1+4,\"\"))","v":"2019-01-03"},{"$f":"IF(DAY(IanDum1)=1,\"\",IF(AND(YEAR(IanDum1+5)=AnulCalendaristic,MONTH(IanDum1+5)=1),IanDum1+5,\"\"))","v":"2019-01-04"},{"$f":"IF(DAY(IanDum1)=1,\"\",IF(AND(YEAR(IanDum1+6)=AnulCalendaristic,MONTH(IanDum1+6)=1),IanDum1+6,\"\"))","v":"2019-01-05"},{"$f":"IF(DAY(IanDum1)=1,IF(AND(YEAR(IanDum1)=AnulCalendaristic,MONTH(IanDum1)=1),IanDum1,\"\"),IF(AND(YEAR(IanDum1+7)=AnulCalendaristic,MONTH(IanDum1+7)=1),IanDum1+7,\"\"))","v":"2019-01-06"},null,null,{"$f":"IF(DAY(FebDum1)=1,\"\",IF(AND(YEAR(FebDum1+1)=AnulCalendaristic,MONTH(FebDum1+1)=2),FebDum1+1,\"\"))","v":""},{"$f":"IF(DAY(FebDum1)=1,\"\",IF(AND(YEAR(FebDum1+2)=AnulCalendaristic,MONTH(FebDum1+2)=2),FebDum1+2,\"\"))","v":""},{"$f":"IF(DAY(FebDum1)=1,\"\",IF(AND(YEAR(FebDum1+3)=AnulCalendaristic,MONTH(FebDum1+3)=2),FebDum1+3,\"\"))","v":""},{"$f":"IF(DAY(FebDum1)=1,\"\",IF(AND(YEAR(FebDum1+4)=AnulCalendaristic,MONTH(FebDum1+4)=2),FebDum1+4,\"\"))","v":""},{"$f":"IF(DAY(FebDum1)=1,\"\",IF(AND(YEAR(FebDum1+5)=AnulCalendaristic,MONTH(FebDum1+5)=2),FebDum1+5,\"\"))","v":"2019-02-01"},{"$f":"IF(DAY(FebDum1)=1,\"\",IF(AND(YEAR(FebDum1+6)=AnulCalendaristic,MONTH(FebDum1+6)=2),FebDum1+6,\"\"))","v":"2019-02-02"},{"$f":"IF(DAY(FebDum1)=1,IF(AND(YEAR(FebDum1)=AnulCalendaristic,MONTH(FebDum1)=2),FebDum1,\"\"),IF(AND(YEAR(FebDum1+7)=AnulCalendaristic,MONTH(FebDum1+7)=2),FebDum1+7,\"\"))","v":"2019-02-03"},null,null,{"$f":"IF(DAY(MarDum1)=1,\"\",IF(AND(YEAR(MarDum1+1)=AnulCalendaristic,MONTH(MarDum1+1)=3),MarDum1+1,\"\"))","v":""},{"$f":"IF(DAY(MarDum1)=1,\"\",IF(AND(YEAR(MarDum1+2)=AnulCalendaristic,MONTH(MarDum1+2)=3),MarDum1+2,\"\"))","v":""},{"$f":"IF(DAY(MarDum1)=1,\"\",IF(AND(YEAR(MarDum1+3)=AnulCalendaristic,MONTH(MarDum1+3)=3),MarDum1+3,\"\"))","v":""},{"$f":"IF(DAY(MarDum1)=1,\"\",IF(AND(YEAR(MarDum1+4)=AnulCalendaristic,MONTH(MarDum1+4)=3),MarDum1+4,\"\"))","v":""},{"$f":"IF(DAY(MarDum1)=1,\"\",IF(AND(YEAR(MarDum1+5)=AnulCalendaristic,MONTH(MarDum1+5)=3),MarDum1+5,\"\"))","v":"2019-03-01"},{"$f":"IF(DAY(MarDum1)=1,\"\",IF(AND(YEAR(MarDum1+6)=AnulCalendaristic,MONTH(MarDum1+6)=3),MarDum1+6,\"\"))","v":"2019-03-02"},{"$f":"IF(DAY(MarDum1)=1,IF(AND(YEAR(MarDum1)=AnulCalendaristic,MONTH(MarDum1)=3),MarDum1,\"\"),IF(AND(YEAR(MarDum1+7)=AnulCalendaristic,MONTH(MarDum1+7)=3),MarDum1+7,\"\"))","v":"2019-03-03"},null,null,{"$f":"IF(DAY(AprDum1)=1,\"\",IF(AND(YEAR(AprDum1+1)=AnulCalendaristic,MONTH(AprDum1+1)=4),AprDum1+1,\"\"))","v":"2019-04-01"},{"$f":"IF(DAY(AprDum1)=1,\"\",IF(AND(YEAR(AprDum1+2)=AnulCalendaristic,MONTH(AprDum1+2)=4),AprDum1+2,\"\"))","v":"2019-04-02"},{"$f":"IF(DAY(AprDum1)=1,\"\",IF(AND(YEAR(AprDum1+3)=AnulCalendaristic,MONTH(AprDum1+3)=4),AprDum1+3,\"\"))","v":"2019-04-03"},{"$f":"IF(DAY(AprDum1)=1,\"\",IF(AND(YEAR(AprDum1+4)=AnulCalendaristic,MONTH(AprDum1+4)=4),AprDum1+4,\"\"))","v":"2019-04-04"},{"$f":"IF(DAY(AprDum1)=1,\"\",IF(AND(YEAR(AprDum1+5)=AnulCalendaristic,MONTH(AprDum1+5)=4),AprDum1+5,\"\"))","v":"2019-04-05"},{"$f":"IF(DAY(AprDum1)=1,\"\",IF(AND(YEAR(AprDum1+6)=AnulCalendaristic,MONTH(AprDum1+6)=4),AprDum1+6,\"\"))","v":"2019-04-06"},{"$f":"IF(DAY(AprDum1)=1,IF(AND(YEAR(AprDum1)=AnulCalendaristic,MONTH(AprDum1)=4),AprDum1,\"\"),IF(AND(YEAR(AprDum1+7)=AnulCalendaristic,MONTH(AprDum1+7)=4),AprDum1+7,\"\"))","v":"2019-04-07"}]
[null,null,{"$f":"IF(DAY(IanDum1)=1,IF(AND(YEAR(IanDum1+1)=AnulCalendaristic,MONTH(IanDum1+1)=1),IanDum1+1,\"\"),IF(AND(YEAR(IanDum1+8)=AnulCalendaristic,MONTH(IanDum1+8)=1),IanDum1+8,\"\"))","v":"2019-01-07"},{"$f":"IF(DAY(IanDum1)=1,IF(AND(YEAR(IanDum1+2)=AnulCalendaristic,MONTH(IanDum1+2)=1),IanDum1+2,\"\"),IF(AND(YEAR(IanDum1+9)=AnulCalendaristic,MONTH(IanDum1+9)=1),IanDum1+9,\"\"))","v":"2019-01-08"},{"$f":"IF(DAY(IanDum1)=1,IF(AND(YEAR(IanDum1+3)=AnulCalendaristic,MONTH(IanDum1+3)=1),IanDum1+3,\"\"),IF(AND(YEAR(IanDum1+10)=AnulCalendaristic,MONTH(IanDum1+10)=1),IanDum1+10,\"\"))","v":"2019-01-09"},{"$f":"IF(DAY(IanDum1)=1,IF(AND(YEAR(IanDum1+4)=AnulCalendaristic,MONTH(IanDum1+4)=1),IanDum1+4,\"\"),IF(AND(YEAR(IanDum1+11)=AnulCalendaristic,MONTH(IanDum1+11)=1),IanDum1+11,\"\"))","v":"2019-01-10"},{"$f":"IF(DAY(IanDum1)=1,IF(AND(YEAR(IanDum1+5)=AnulCalendaristic,MONTH(IanDum1+5)=1),IanDum1+5,\"\"),IF(AND(YEAR(IanDum1+12)=AnulCalendaristic,MONTH(IanDum1+12)=1),IanDum1+12,\"\"))","v":"2019-01-11"},{"$f":"IF(DAY(IanDum1)=1,IF(AND(YEAR(IanDum1+6)=AnulCalendaristic,MONTH(IanDum1+6)=1),IanDum1+6,\"\"),IF(AND(YEAR(IanDum1+13)=AnulCalendaristic,MONTH(IanDum1+13)=1),IanDum1+13,\"\"))","v":"2019-01-12"},{"$f":"IF(DAY(IanDum1)=1,IF(AND(YEAR(IanDum1+7)=AnulCalendaristic,MONTH(IanDum1+7)=1),IanDum1+7,\"\"),IF(AND(YEAR(IanDum1+14)=AnulCalendaristic,MONTH(IanDum1+14)=1),IanDum1+14,\"\"))","v":"2019-01-13"},null,null,{"$f":"IF(DAY(FebDum1)=1,IF(AND(YEAR(FebDum1+1)=AnulCalendaristic,MONTH(FebDum1+1)=2),FebDum1+1,\"\"),IF(AND(YEAR(FebDum1+8)=AnulCalendaristic,MONTH(FebDum1+8)=2),FebDum1+8,\"\"))","v":"2019-02-04"},{"$f":"IF(DAY(FebDum1)=1,IF(AND(YEAR(FebDum1+2)=AnulCalendaristic,MONTH(FebDum1+2)=2),FebDum1+2,\"\"),IF(AND(YEAR(FebDum1+9)=AnulCalendaristic,MONTH(FebDum1+9)=2),FebDum1+9,\"\"))","v":"2019-02-05"},{"$f":"IF(DAY(FebDum1)=1,IF(AND(YEAR(FebDum1+3)=AnulCalendaristic,MONTH(FebDum1+3)=2),FebDum1+3,\"\"),IF(AND(YEAR(FebDum1+10)=AnulCalendaristic,MONTH(FebDum1+10)=2),FebDum1+10,\"\"))","v":"2019-02-06"},{"$f":"IF(DAY(FebDum1)=1,IF(AND(YEAR(FebDum1+4)=AnulCalendaristic,MONTH(FebDum1+4)=2),FebDum1+4,\"\"),IF(AND(YEAR(FebDum1+11)=AnulCalendaristic,MONTH(FebDum1+11)=2),FebDum1+11,\"\"))","v":"2019-02-07"},{"$f":"IF(DAY(FebDum1)=1,IF(AND(YEAR(FebDum1+5)=AnulCalendaristic,MONTH(FebDum1+5)=2),FebDum1+5,\"\"),IF(AND(YEAR(FebDum1+12)=AnulCalendaristic,MONTH(FebDum1+12)=2),FebDum1+12,\"\"))","v":"2019-02-08"},{"$f":"IF(DAY(FebDum1)=1,IF(AND(YEAR(FebDum1+6)=AnulCalendaristic,MONTH(FebDum1+6)=2),FebDum1+6,\"\"),IF(AND(YEAR(FebDum1+13)=AnulCalendaristic,MONTH(FebDum1+13)=2),FebDum1+13,\"\"))","v":"2019-02-09"},{"$f":"IF(DAY(FebDum1)=1,IF(AND(YEAR(FebDum1+7)=AnulCalendaristic,MONTH(FebDum1+7)=2),FebDum1+7,\"\"),IF(AND(YEAR(FebDum1+14)=AnulCalendaristic,MONTH(FebDum1+14)=2),FebDum1+14,\"\"))","v":"2019-02-10"},null,null,{"$f":"IF(DAY(MarDum1)=1,IF(AND(YEAR(MarDum1+1)=AnulCalendaristic,MONTH(MarDum1+1)=3),MarDum1+1,\"\"),IF(AND(YEAR(MarDum1+8)=AnulCalendaristic,MONTH(MarDum1+8)=3),MarDum1+8,\"\"))","v":"2019-03-04"},{"$f":"IF(DAY(MarDum1)=1,IF(AND(YEAR(MarDum1+2)=AnulCalendaristic,MONTH(MarDum1+2)=3),MarDum1+2,\"\"),IF(AND(YEAR(MarDum1+9)=AnulCalendaristic,MONTH(MarDum1+9)=3),MarDum1+9,\"\"))","v":"2019-03-05"},{"$f":"IF(DAY(MarDum1)=1,IF(AND(YEAR(MarDum1+3)=AnulCalendaristic,MONTH(MarDum1+3)=3),MarDum1+3,\"\"),IF(AND(YEAR(MarDum1+10)=AnulCalendaristic,MONTH(MarDum1+10)=3),MarDum1+10,\"\"))","v":"2019-03-06"},{"$f":"IF(DAY(MarDum1)=1,IF(AND(YEAR(MarDum1+4)=AnulCalendaristic,MONTH(MarDum1+4)=3),MarDum1+4,\"\"),IF(AND(YEAR(MarDum1+11)=AnulCalendaristic,MONTH(MarDum1+11)=3),MarDum1+11,\"\"))","v":"2019-03-07"},{"$f":"IF(DAY(MarDum1)=1,IF(AND(YEAR(MarDum1+5)=AnulCalendaristic,MONTH(MarDum1+5)=3),MarDum1+5,\"\"),IF(AND(YEAR(MarDum1+12)=AnulCalendaristic,MONTH(MarDum1+12)=3),MarDum1+12,\"\"))","v":"2019-03-08"},{"$f":"IF(DAY(MarDum1)=1,IF(AND(YEAR(MarDum1+6)=AnulCalendaristic,MONTH(MarDum1+6)=3),MarDum1+6,\"\"),IF(AND(YEAR(MarDum1+13)=AnulCalendaristic,MONTH(MarDum1+13)=3),MarDum1+13,\"\"))","v":"2019-03-09"},{"$f":"IF(DAY(MarDum1)=1,IF(AND(YEAR(MarDum1+7)=AnulCalendaristic,MONTH(MarDum1+7)=3),MarDum1+7,\"\"),IF(AND(YEAR(MarDum1+14)=AnulCalendaristic,MONTH(MarDum1+14)=3),MarDum1+14,\"\"))","v":"2019-03-10"},null,null,{"$f":"IF(DAY(AprDum1)=1,IF(AND(YEAR(AprDum1+1)=AnulCalendaristic,MONTH(AprDum1+1)=4),AprDum1+1,\"\"),IF(AND(YEAR(AprDum1+8)=AnulCalendaristic,MONTH(AprDum1+8)=4),AprDum1+8,\"\"))","v":"2019-04-08"},{"$f":"IF(DAY(AprDum1)=1,IF(AND(YEAR(AprDum1+2)=AnulCalendaristic,MONTH(AprDum1+2)=4),AprDum1+2,\"\"),IF(AND(YEAR(AprDum1+9)=AnulCalendaristic,MONTH(AprDum1+9)=4),AprDum1+9,\"\"))","v":"2019-04-09"},{"$f":"IF(DAY(AprDum1)=1,IF(AND(YEAR(AprDum1+3)=AnulCalendaristic,MONTH(AprDum1+3)=4),AprDum1+3,\"\"),IF(AND(YEAR(AprDum1+10)=AnulCalendaristic,MONTH(AprDum1+10)=4),AprDum1+10,\"\"))","v":"2019-04-10"},{"$f":"IF(DAY(AprDum1)=1,IF(AND(YEAR(AprDum1+4)=AnulCalendaristic,MONTH(AprDum1+4)=4),AprDum1+4,\"\"),IF(AND(YEAR(AprDum1+11)=AnulCalendaristic,MONTH(AprDum1+11)=4),AprDum1+11,\"\"))","v":"2019-04-11"},{"$f":"IF(DAY(AprDum1)=1,IF(AND(YEAR(AprDum1+5)=AnulCalendaristic,MONTH(AprDum1+5)=4),AprDum1+5,\"\"),IF(AND(YEAR(AprDum1+12)=AnulCalendaristic,MONTH(AprDum1+12)=4),AprDum1+12,\"\"))","v":"2019-04-12"},{"$f":"IF(DAY(AprDum1)=1,IF(AND(YEAR(AprDum1+6)=AnulCalendaristic,MONTH(AprDum1+6)=4),AprDum1+6,\"\"),IF(AND(YEAR(AprDum1+13)=AnulCalendaristic,MONTH(AprDum1+13)=4),AprDum1+13,\"\"))","v":"2019-04-13"},{"$f":"IF(DAY(AprDum1)=1,IF(AND(YEAR(AprDum1+7)=AnulCalendaristic,MONTH(AprDum1+7)=4),AprDum1+7,\"\"),IF(AND(YEAR(AprDum1+14)=AnulCalendaristic,MONTH(AprDum1+14)=4),AprDum1+14,\"\"))","v":"2019-04-14"}]
[null,null,{"$f":"IF(DAY(IanDum1)=1,IF(AND(YEAR(IanDum1+8)=AnulCalendaristic,MONTH(IanDum1+8)=1),IanDum1+8,\"\"),IF(AND(YEAR(IanDum1+15)=AnulCalendaristic,MONTH(IanDum1+15)=1),IanDum1+15,\"\"))","v":"2019-01-14"},{"$f":"IF(DAY(IanDum1)=1,IF(AND(YEAR(IanDum1+9)=AnulCalendaristic,MONTH(IanDum1+9)=1),IanDum1+9,\"\"),IF(AND(YEAR(IanDum1+16)=AnulCalendaristic,MONTH(IanDum1+16)=1),IanDum1+16,\"\"))","v":"2019-01-15"},{"$f":"IF(DAY(IanDum1)=1,IF(AND(YEAR(IanDum1+10)=AnulCalendaristic,MONTH(IanDum1+10)=1),IanDum1+10,\"\"),IF(AND(YEAR(IanDum1+17)=AnulCalendaristic,MONTH(IanDum1+17)=1),IanDum1+17,\"\"))","v":"2019-01-16"},{"$f":"IF(DAY(IanDum1)=1,IF(AND(YEAR(IanDum1+11)=AnulCalendaristic,MONTH(IanDum1+11)=1),IanDum1+11,\"\"),IF(AND(YEAR(IanDum1+18)=AnulCalendaristic,MONTH(IanDum1+18)=1),IanDum1+18,\"\"))","v":"2019-01-17"},{"$f":"IF(DAY(IanDum1)=1,IF(AND(YEAR(IanDum1+12)=AnulCalendaristic,MONTH(IanDum1+12)=1),IanDum1+12,\"\"),IF(AND(YEAR(IanDum1+19)=AnulCalendaristic,MONTH(IanDum1+19)=1),IanDum1+19,\"\"))","v":"2019-01-18"},{"$f":"IF(DAY(IanDum1)=1,IF(AND(YEAR(IanDum1+13)=AnulCalendaristic,MONTH(IanDum1+13)=1),IanDum1+13,\"\"),IF(AND(YEAR(IanDum1+20)=AnulCalendaristic,MONTH(IanDum1+20)=1),IanDum1+20,\"\"))","v":"2019-01-19"},{"$f":"IF(DAY(IanDum1)=1,IF(AND(YEAR(IanDum1+14)=AnulCalendaristic,MONTH(IanDum1+14)=1),IanDum1+14,\"\"),IF(AND(YEAR(IanDum1+21)=AnulCalendaristic,MONTH(IanDum1+21)=1),IanDum1+21,\"\"))","v":"2019-01-20"},null,null,{"$f":"IF(DAY(FebDum1)=1,IF(AND(YEAR(FebDum1+8)=AnulCalendaristic,MONTH(FebDum1+8)=2),FebDum1+8,\"\"),IF(AND(YEAR(FebDum1+15)=AnulCalendaristic,MONTH(FebDum1+15)=2),FebDum1+15,\"\"))","v":"2019-02-11"},{"$f":"IF(DAY(FebDum1)=1,IF(AND(YEAR(FebDum1+9)=AnulCalendaristic,MONTH(FebDum1+9)=2),FebDum1+9,\"\"),IF(AND(YEAR(FebDum1+16)=AnulCalendaristic,MONTH(FebDum1+16)=2),FebDum1+16,\"\"))","v":"2019-02-12"},{"$f":"IF(DAY(FebDum1)=1,IF(AND(YEAR(FebDum1+10)=AnulCalendaristic,MONTH(FebDum1+10)=2),FebDum1+10,\"\"),IF(AND(YEAR(FebDum1+17)=AnulCalendaristic,MONTH(FebDum1+17)=2),FebDum1+17,\"\"))","v":"2019-02-13"},{"$f":"IF(DAY(FebDum1)=1,IF(AND(YEAR(FebDum1+11)=AnulCalendaristic,MONTH(FebDum1+11)=2),FebDum1+11,\"\"),IF(AND(YEAR(FebDum1+18)=AnulCalendaristic,MONTH(FebDum1+18)=2),FebDum1+18,\"\"))","v":"2019-02-14"},{"$f":"IF(DAY(FebDum1)=1,IF(AND(YEAR(FebDum1+12)=AnulCalendaristic,MONTH(FebDum1+12)=2),FebDum1+12,\"\"),IF(AND(YEAR(FebDum1+19)=AnulCalendaristic,MONTH(FebDum1+19)=2),FebDum1+19,\"\"))","v":"2019-02-15"},{"$f":"IF(DAY(FebDum1)=1,IF(AND(YEAR(FebDum1+13)=AnulCalendaristic,MONTH(FebDum1+13)=2),FebDum1+13,\"\"),IF(AND(YEAR(FebDum1+20)=AnulCalendaristic,MONTH(FebDum1+20)=2),FebDum1+20,\"\"))","v":"2019-02-16"},{"$f":"IF(DAY(FebDum1)=1,IF(AND(YEAR(FebDum1+14)=AnulCalendaristic,MONTH(FebDum1+14)=2),FebDum1+14,\"\"),IF(AND(YEAR(FebDum1+21)=AnulCalendaristic,MONTH(FebDum1+21)=2),FebDum1+21,\"\"))","v":"2019-02-17"},null,null,{"$f":"IF(DAY(MarDum1)=1,IF(AND(YEAR(MarDum1+8)=AnulCalendaristic,MONTH(MarDum1+8)=3),MarDum1+8,\"\"),IF(AND(YEAR(MarDum1+15)=AnulCalendaristic,MONTH(MarDum1+15)=3),MarDum1+15,\"\"))","v":"2019-03-11"},{"$f":"IF(DAY(MarDum1)=1,IF(AND(YEAR(MarDum1+9)=AnulCalendaristic,MONTH(MarDum1+9)=3),MarDum1+9,\"\"),IF(AND(YEAR(MarDum1+16)=AnulCalendaristic,MONTH(MarDum1+16)=3),MarDum1+16,\"\"))","v":"2019-03-12"},{"$f":"IF(DAY(MarDum1)=1,IF(AND(YEAR(MarDum1+10)=AnulCalendaristic,MONTH(MarDum1+10)=3),MarDum1+10,\"\"),IF(AND(YEAR(MarDum1+17)=AnulCalendaristic,MONTH(MarDum1+17)=3),MarDum1+17,\"\"))","v":"2019-03-13"},{"$f":"IF(DAY(MarDum1)=1,IF(AND(YEAR(MarDum1+11)=AnulCalendaristic,MONTH(MarDum1+11)=3),MarDum1+11,\"\"),IF(AND(YEAR(MarDum1+18)=AnulCalendaristic,MONTH(MarDum1+18)=3),MarDum1+18,\"\"))","v":"2019-03-14"},{"$f":"IF(DAY(MarDum1)=1,IF(AND(YEAR(MarDum1+12)=AnulCalendaristic,MONTH(MarDum1+12)=3),MarDum1+12,\"\"),IF(AND(YEAR(MarDum1+19)=AnulCalendaristic,MONTH(MarDum1+19)=3),MarDum1+19,\"\"))","v":"2019-03-15"},{"$f":"IF(DAY(MarDum1)=1,IF(AND(YEAR(MarDum1+13)=AnulCalendaristic,MONTH(MarDum1+13)=3),MarDum1+13,\"\"),IF(AND(YEAR(MarDum1+20)=AnulCalendaristic,MONTH(MarDum1+20)=3),MarDum1+20,\"\"))","v":"2019-03-16"},{"$f":"IF(DAY(MarDum1)=1,IF(AND(YEAR(MarDum1+14)=AnulCalendaristic,MONTH(MarDum1+14)=3),MarDum1+14,\"\"),IF(AND(YEAR(MarDum1+21)=AnulCalendaristic,MONTH(MarDum1+21)=3),MarDum1+21,\"\"))","v":"2019-03-17"},null,null,{"$f":"IF(DAY(AprDum1)=1,IF(AND(YEAR(AprDum1+8)=AnulCalendaristic,MONTH(AprDum1+8)=4),AprDum1+8,\"\"),IF(AND(YEAR(AprDum1+15)=AnulCalendaristic,MONTH(AprDum1+15)=4),AprDum1+15,\"\"))","v":"2019-04-15"},{"$f":"IF(DAY(AprDum1)=1,IF(AND(YEAR(AprDum1+9)=AnulCalendaristic,MONTH(AprDum1+9)=4),AprDum1+9,\"\"),IF(AND(YEAR(AprDum1+16)=AnulCalendaristic,MONTH(AprDum1+16)=4),AprDum1+16,\"\"))","v":"2019-04-16"},{"$f":"IF(DAY(AprDum1)=1,IF(AND(YEAR(AprDum1+10)=AnulCalendaristic,MONTH(AprDum1+10)=4),AprDum1+10,\"\"),IF(AND(YEAR(AprDum1+17)=AnulCalendaristic,MONTH(AprDum1+17)=4),AprDum1+17,\"\"))","v":"2019-04-17"},{"$f":"IF(DAY(AprDum1)=1,IF(AND(YEAR(AprDum1+11)=AnulCalendaristic,MONTH(AprDum1+11)=4),AprDum1+11,\"\"),IF(AND(YEAR(AprDum1+18)=AnulCalendaristic,MONTH(AprDum1+18)=4),AprDum1+18,\"\"))","v":"2019-04-18"},{"$f":"IF(DAY(AprDum1)=1,IF(AND(YEAR(AprDum1+12)=AnulCalendaristic,MONTH(AprDum1+12)=4),AprDum1+12,\"\"),IF(AND(YEAR(AprDum1+19)=AnulCalendaristic,MONTH(AprDum1+19)=4),AprDum1+19,\"\"))","v":"2019-04-19"},{"$f":"IF(DAY(AprDum1)=1,IF(AND(YEAR(AprDum1+13)=AnulCalendaristic,MONTH(AprDum1+13)=4),AprDum1+13,\"\"),IF(AND(YEAR(AprDum1+20)=AnulCalendaristic,MONTH(AprDum1+20)=4),AprDum1+20,\"\"))","v":"2019-04-20"},{"$f":"IF(DAY(AprDum1)=1,IF(AND(YEAR(AprDum1+14)=AnulCalendaristic,MONTH(AprDum1+14)=4),AprDum1+14,\"\"),IF(AND(YEAR(AprDum1+21)=AnulCalendaristic,MONTH(AprDum1+21)=4),AprDum1+21,\"\"))","v":"2019-04-21"}]
[null,null,{"$f":"IF(DAY(IanDum1)=1,IF(AND(YEAR(IanDum1+15)=AnulCalendaristic,MONTH(IanDum1+15)=1),IanDum1+15,\"\"),IF(AND(YEAR(IanDum1+22)=AnulCalendaristic,MONTH(IanDum1+22)=1),IanDum1+22,\"\"))","v":"2019-01-21"},{"$f":"IF(DAY(IanDum1)=1,IF(AND(YEAR(IanDum1+16)=AnulCalendaristic,MONTH(IanDum1+16)=1),IanDum1+16,\"\"),IF(AND(YEAR(IanDum1+23)=AnulCalendaristic,MONTH(IanDum1+23)=1),IanDum1+23,\"\"))","v":"2019-01-22"},{"$f":"IF(DAY(IanDum1)=1,IF(AND(YEAR(IanDum1+17)=AnulCalendaristic,MONTH(IanDum1+17)=1),IanDum1+17,\"\"),IF(AND(YEAR(IanDum1+24)=AnulCalendaristic,MONTH(IanDum1+24)=1),IanDum1+24,\"\"))","v":"2019-01-23"},{"$f":"IF(DAY(IanDum1)=1,IF(AND(YEAR(IanDum1+18)=AnulCalendaristic,MONTH(IanDum1+18)=1),IanDum1+18,\"\"),IF(AND(YEAR(IanDum1+25)=AnulCalendaristic,MONTH(IanDum1+25)=1),IanDum1+25,\"\"))","v":"2019-01-24"},{"$f":"IF(DAY(IanDum1)=1,IF(AND(YEAR(IanDum1+19)=AnulCalendaristic,MONTH(IanDum1+19)=1),IanDum1+19,\"\"),IF(AND(YEAR(IanDum1+26)=AnulCalendaristic,MONTH(IanDum1+26)=1),IanDum1+26,\"\"))","v":"2019-01-25"},{"$f":"IF(DAY(IanDum1)=1,IF(AND(YEAR(IanDum1+20)=AnulCalendaristic,MONTH(IanDum1+20)=1),IanDum1+20,\"\"),IF(AND(YEAR(IanDum1+27)=AnulCalendaristic,MONTH(IanDum1+27)=1),IanDum1+27,\"\"))","v":"2019-01-26"},{"$f":"IF(DAY(IanDum1)=1,IF(AND(YEAR(IanDum1+21)=AnulCalendaristic,MONTH(IanDum1+21)=1),IanDum1+21,\"\"),IF(AND(YEAR(IanDum1+28)=AnulCalendaristic,MONTH(IanDum1+28)=1),IanDum1+28,\"\"))","v":"2019-01-27"},null,null,{"$f":"IF(DAY(FebDum1)=1,IF(AND(YEAR(FebDum1+15)=AnulCalendaristic,MONTH(FebDum1+15)=2),FebDum1+15,\"\"),IF(AND(YEAR(FebDum1+22)=AnulCalendaristic,MONTH(FebDum1+22)=2),FebDum1+22,\"\"))","v":"2019-02-18"},{"$f":"IF(DAY(FebDum1)=1,IF(AND(YEAR(FebDum1+16)=AnulCalendaristic,MONTH(FebDum1+16)=2),FebDum1+16,\"\"),IF(AND(YEAR(FebDum1+23)=AnulCalendaristic,MONTH(FebDum1+23)=2),FebDum1+23,\"\"))","v":"2019-02-19"},{"$f":"IF(DAY(FebDum1)=1,IF(AND(YEAR(FebDum1+17)=AnulCalendaristic,MONTH(FebDum1+17)=2),FebDum1+17,\"\"),IF(AND(YEAR(FebDum1+24)=AnulCalendaristic,MONTH(FebDum1+24)=2),FebDum1+24,\"\"))","v":"2019-02-20"},{"$f":"IF(DAY(FebDum1)=1,IF(AND(YEAR(FebDum1+18)=AnulCalendaristic,MONTH(FebDum1+18)=2),FebDum1+18,\"\"),IF(AND(YEAR(FebDum1+25)=AnulCalendaristic,MONTH(FebDum1+25)=2),FebDum1+25,\"\"))","v":"2019-02-21"},{"$f":"IF(DAY(FebDum1)=1,IF(AND(YEAR(FebDum1+19)=AnulCalendaristic,MONTH(FebDum1+19)=2),FebDum1+19,\"\"),IF(AND(YEAR(FebDum1+26)=AnulCalendaristic,MONTH(FebDum1+26)=2),FebDum1+26,\"\"))","v":"2019-02-22"},{"$f":"IF(DAY(FebDum1)=1,IF(AND(YEAR(FebDum1+20)=AnulCalendaristic,MONTH(FebDum1+20)=2),FebDum1+20,\"\"),IF(AND(YEAR(FebDum1+27)=AnulCalendaristic,MONTH(FebDum1+27)=2),FebDum1+27,\"\"))","v":"2019-02-23"},{"$f":"IF(DAY(FebDum1)=1,IF(AND(YEAR(FebDum1+21)=AnulCalendaristic,MONTH(FebDum1+21)=2),FebDum1+21,\"\"),IF(AND(YEAR(FebDum1+28)=AnulCalendaristic,MONTH(FebDum1+28)=2),FebDum1+28,\"\"))","v":"2019-02-24"},null,null,{"$f":"IF(DAY(MarDum1)=1,IF(AND(YEAR(MarDum1+15)=AnulCalendaristic,MONTH(MarDum1+15)=3),MarDum1+15,\"\"),IF(AND(YEAR(MarDum1+22)=AnulCalendaristic,MONTH(MarDum1+22)=3),MarDum1+22,\"\"))","v":"2019-03-18"},{"$f":"IF(DAY(MarDum1)=1,IF(AND(YEAR(MarDum1+16)=AnulCalendaristic,MONTH(MarDum1+16)=3),MarDum1+16,\"\"),IF(AND(YEAR(MarDum1+23)=AnulCalendaristic,MONTH(MarDum1+23)=3),MarDum1+23,\"\"))","v":"2019-03-19"},{"$f":"IF(DAY(MarDum1)=1,IF(AND(YEAR(MarDum1+17)=AnulCalendaristic,MONTH(MarDum1+17)=3),MarDum1+17,\"\"),IF(AND(YEAR(MarDum1+24)=AnulCalendaristic,MONTH(MarDum1+24)=3),MarDum1+24,\"\"))","v":"2019-03-20"},{"$f":"IF(DAY(MarDum1)=1,IF(AND(YEAR(MarDum1+18)=AnulCalendaristic,MONTH(MarDum1+18)=3),MarDum1+18,\"\"),IF(AND(YEAR(MarDum1+25)=AnulCalendaristic,MONTH(MarDum1+25)=3),MarDum1+25,\"\"))","v":"2019-03-21"},{"$f":"IF(DAY(MarDum1)=1,IF(AND(YEAR(MarDum1+19)=AnulCalendaristic,MONTH(MarDum1+19)=3),MarDum1+19,\"\"),IF(AND(YEAR(MarDum1+26)=AnulCalendaristic,MONTH(MarDum1+26)=3),MarDum1+26,\"\"))","v":"2019-03-22"},{"$f":"IF(DAY(MarDum1)=1,IF(AND(YEAR(MarDum1+20)=AnulCalendaristic,MONTH(MarDum1+20)=3),MarDum1+20,\"\"),IF(AND(YEAR(MarDum1+27)=AnulCalendaristic,MONTH(MarDum1+27)=3),MarDum1+27,\"\"))","v":"2019-03-23"},{"$f":"IF(DAY(MarDum1)=1,IF(AND(YEAR(MarDum1+21)=AnulCalendaristic,MONTH(MarDum1+21)=3),MarDum1+21,\"\"),IF(AND(YEAR(MarDum1+28)=AnulCalendaristic,MONTH(MarDum1+28)=3),MarDum1+28,\"\"))","v":"2019-03-24"},null,null,{"$f":"IF(DAY(AprDum1)=1,IF(AND(YEAR(AprDum1+15)=AnulCalendaristic,MONTH(AprDum1+15)=4),AprDum1+15,\"\"),IF(AND(YEAR(AprDum1+22)=AnulCalendaristic,MONTH(AprDum1+22)=4),AprDum1+22,\"\"))","v":"2019-04-22"},{"$f":"IF(DAY(AprDum1)=1,IF(AND(YEAR(AprDum1+16)=AnulCalendaristic,MONTH(AprDum1+16)=4),AprDum1+16,\"\"),IF(AND(YEAR(AprDum1+23)=AnulCalendaristic,MONTH(AprDum1+23)=4),AprDum1+23,\"\"))","v":"2019-04-23"},{"$f":"IF(DAY(AprDum1)=1,IF(AND(YEAR(AprDum1+17)=AnulCalendaristic,MONTH(AprDum1+17)=4),AprDum1+17,\"\"),IF(AND(YEAR(AprDum1+24)=AnulCalendaristic,MONTH(AprDum1+24)=4),AprDum1+24,\"\"))","v":"2019-04-24"},{"$f":"IF(DAY(AprDum1)=1,IF(AND(YEAR(AprDum1+18)=AnulCalendaristic,MONTH(AprDum1+18)=4),AprDum1+18,\"\"),IF(AND(YEAR(AprDum1+25)=AnulCalendaristic,MONTH(AprDum1+25)=4),AprDum1+25,\"\"))","v":"2019-04-25"},{"$f":"IF(DAY(AprDum1)=1,IF(AND(YEAR(AprDum1+19)=AnulCalendaristic,MONTH(AprDum1+19)=4),AprDum1+19,\"\"),IF(AND(YEAR(AprDum1+26)=AnulCalendaristic,MONTH(AprDum1+26)=4),AprDum1+26,\"\"))","v":"2019-04-26"},{"$f":"IF(DAY(AprDum1)=1,IF(AND(YEAR(AprDum1+20)=AnulCalendaristic,MONTH(AprDum1+20)=4),AprDum1+20,\"\"),IF(AND(YEAR(AprDum1+27)=AnulCalendaristic,MONTH(AprDum1+27)=4),AprDum1+27,\"\"))","v":"2019-04-27"},{"$f":"IF(DAY(AprDum1)=1,IF(AND(YEAR(AprDum1+21)=AnulCalendaristic,MONTH(AprDum1+21)=4),AprDum1+21,\"\"),IF(AND(YEAR(AprDum1+28)=AnulCalendaristic,MONTH(AprDum1+28)=4),AprDum1+28,\"\"))","v":"2019-04-28"}]
[null,null,{"$f":"IF(DAY(IanDum1)=1,IF(AND(YEAR(IanDum1+22)=AnulCalendaristic,MONTH(IanDum1+22)=1),IanDum1+22,\"\"),IF(AND(YEAR(IanDum1+29)=AnulCalendaristic,MONTH(IanDum1+29)=1),IanDum1+29,\"\"))","v":"2019-01-28"},{"$f":"IF(DAY(IanDum1)=1,IF(AND(YEAR(IanDum1+23)=AnulCalendaristic,MONTH(IanDum1+23)=1),IanDum1+23,\"\"),IF(AND(YEAR(IanDum1+30)=AnulCalendaristic,MONTH(IanDum1+30)=1),IanDum1+30,\"\"))","v":"2019-01-29"},{"$f":"IF(DAY(IanDum1)=1,IF(AND(YEAR(IanDum1+24)=AnulCalendaristic,MONTH(IanDum1+24)=1),IanDum1+24,\"\"),IF(AND(YEAR(IanDum1+31)=AnulCalendaristic,MONTH(IanDum1+31)=1),IanDum1+31,\"\"))","v":"2019-01-30"},{"$f":"IF(DAY(IanDum1)=1,IF(AND(YEAR(IanDum1+25)=AnulCalendaristic,MONTH(IanDum1+25)=1),IanDum1+25,\"\"),IF(AND(YEAR(IanDum1+32)=AnulCalendaristic,MONTH(IanDum1+32)=1),IanDum1+32,\"\"))","v":"2019-01-31"},{"$f":"IF(DAY(IanDum1)=1,IF(AND(YEAR(IanDum1+26)=AnulCalendaristic,MONTH(IanDum1+26)=1),IanDum1+26,\"\"),IF(AND(YEAR(IanDum1+33)=AnulCalendaristic,MONTH(IanDum1+33)=1),IanDum1+33,\"\"))","v":""},{"$f":"IF(DAY(IanDum1)=1,IF(AND(YEAR(IanDum1+27)=AnulCalendaristic,MONTH(IanDum1+27)=1),IanDum1+27,\"\"),IF(AND(YEAR(IanDum1+34)=AnulCalendaristic,MONTH(IanDum1+34)=1),IanDum1+34,\"\"))","v":""},{"$f":"IF(DAY(IanDum1)=1,IF(AND(YEAR(IanDum1+28)=AnulCalendaristic,MONTH(IanDum1+28)=1),IanDum1+28,\"\"),IF(AND(YEAR(IanDum1+35)=AnulCalendaristic,MONTH(IanDum1+35)=1),IanDum1+35,\"\"))","v":""},null,null,{"$f":"IF(DAY(FebDum1)=1,IF(AND(YEAR(FebDum1+22)=AnulCalendaristic,MONTH(FebDum1+22)=2),FebDum1+22,\"\"),IF(AND(YEAR(FebDum1+29)=AnulCalendaristic,MONTH(FebDum1+29)=2),FebDum1+29,\"\"))","v":"2019-02-25"},{"$f":"IF(DAY(FebDum1)=1,IF(AND(YEAR(FebDum1+23)=AnulCalendaristic,MONTH(FebDum1+23)=2),FebDum1+23,\"\"),IF(AND(YEAR(FebDum1+30)=AnulCalendaristic,MONTH(FebDum1+30)=2),FebDum1+30,\"\"))","v":"2019-02-26"},{"$f":"IF(DAY(FebDum1)=1,IF(AND(YEAR(FebDum1+24)=AnulCalendaristic,MONTH(FebDum1+24)=2),FebDum1+24,\"\"),IF(AND(YEAR(FebDum1+31)=AnulCalendaristic,MONTH(FebDum1+31)=2),FebDum1+31,\"\"))","v":"2019-02-27"},{"$f":"IF(DAY(FebDum1)=1,IF(AND(YEAR(FebDum1+25)=AnulCalendaristic,MONTH(FebDum1+25)=2),FebDum1+25,\"\"),IF(AND(YEAR(FebDum1+32)=AnulCalendaristic,MONTH(FebDum1+32)=2),FebDum1+32,\"\"))","v":"2019-02-28"},{"$f":"IF(DAY(FebDum1)=1,IF(AND(YEAR(FebDum1+26)=AnulCalendaristic,MONTH(FebDum1+26)=2),FebDum1+26,\"\"),IF(AND(YEAR(FebDum1+33)=AnulCalendaristic,MONTH(FebDum1+33)=2),FebDum1+33,\"\"))","v":""},{"$f":"IF(DAY(FebDum1)=1,IF(AND(YEAR(FebDum1+27)=AnulCalendaristic,MONTH(FebDum1+27)=2),FebDum1+27,\"\"),IF(AND(YEAR(FebDum1+34)=AnulCalendaristic,MONTH(FebDum1+34)=2),FebDum1+34,\"\"))","v":""},{"$f":"IF(DAY(FebDum1)=1,IF(AND(YEAR(FebDum1+28)=AnulCalendaristic,MONTH(FebDum1+28)=2),FebDum1+28,\"\"),IF(AND(YEAR(FebDum1+35)=AnulCalendaristic,MONTH(FebDum1+35)=2),FebDum1+35,\"\"))","v":""},null,null,{"$f":"IF(DAY(MarDum1)=1,IF(AND(YEAR(MarDum1+22)=AnulCalendaristic,MONTH(MarDum1+22)=3),MarDum1+22,\"\"),IF(AND(YEAR(MarDum1+29)=AnulCalendaristic,MONTH(MarDum1+29)=3),MarDum1+29,\"\"))","v":"2019-03-25"},{"$f":"IF(DAY(MarDum1)=1,IF(AND(YEAR(MarDum1+23)=AnulCalendaristic,MONTH(MarDum1+23)=3),MarDum1+23,\"\"),IF(AND(YEAR(MarDum1+30)=AnulCalendaristic,MONTH(MarDum1+30)=3),MarDum1+30,\"\"))","v":"2019-03-26"},{"$f":"IF(DAY(MarDum1)=1,IF(AND(YEAR(MarDum1+24)=AnulCalendaristic,MONTH(MarDum1+24)=3),MarDum1+24,\"\"),IF(AND(YEAR(MarDum1+31)=AnulCalendaristic,MONTH(MarDum1+31)=3),MarDum1+31,\"\"))","v":"2019-03-27"},{"$f":"IF(DAY(MarDum1)=1,IF(AND(YEAR(MarDum1+25)=AnulCalendaristic,MONTH(MarDum1+25)=3),MarDum1+25,\"\"),IF(AND(YEAR(MarDum1+32)=AnulCalendaristic,MONTH(MarDum1+32)=3),MarDum1+32,\"\"))","v":"2019-03-28"},{"$f":"IF(DAY(MarDum1)=1,IF(AND(YEAR(MarDum1+26)=AnulCalendaristic,MONTH(MarDum1+26)=3),MarDum1+26,\"\"),IF(AND(YEAR(MarDum1+33)=AnulCalendaristic,MONTH(MarDum1+33)=3),MarDum1+33,\"\"))","v":"2019-03-29"},{"$f":"IF(DAY(MarDum1)=1,IF(AND(YEAR(MarDum1+27)=AnulCalendaristic,MONTH(MarDum1+27)=3),MarDum1+27,\"\"),IF(AND(YEAR(MarDum1+34)=AnulCalendaristic,MONTH(MarDum1+34)=3),MarDum1+34,\"\"))","v":"2019-03-30"},{"$f":"IF(DAY(MarDum1)=1,IF(AND(YEAR(MarDum1+28)=AnulCalendaristic,MONTH(MarDum1+28)=3),MarDum1+28,\"\"),IF(AND(YEAR(MarDum1+35)=AnulCalendaristic,MONTH(MarDum1+35)=3),MarDum1+35,\"\"))","v":"2019-03-31"},null,null,{"$f":"IF(DAY(AprDum1)=1,IF(AND(YEAR(AprDum1+22)=AnulCalendaristic,MONTH(AprDum1+22)=4),AprDum1+22,\"\"),IF(AND(YEAR(AprDum1+29)=AnulCalendaristic,MONTH(AprDum1+29)=4),AprDum1+29,\"\"))","v":"2019-04-29"},{"$f":"IF(DAY(AprDum1)=1,IF(AND(YEAR(AprDum1+23)=AnulCalendaristic,MONTH(AprDum1+23)=4),AprDum1+23,\"\"),IF(AND(YEAR(AprDum1+30)=AnulCalendaristic,MONTH(AprDum1+30)=4),AprDum1+30,\"\"))","v":"2019-04-30"},{"$f":"IF(DAY(AprDum1)=1,IF(AND(YEAR(AprDum1+24)=AnulCalendaristic,MONTH(AprDum1+24)=4),AprDum1+24,\"\"),IF(AND(YEAR(AprDum1+31)=AnulCalendaristic,MONTH(AprDum1+31)=4),AprDum1+31,\"\"))","v":""},{"$f":"IF(DAY(AprDum1)=1,IF(AND(YEAR(AprDum1+25)=AnulCalendaristic,MONTH(AprDum1+25)=4),AprDum1+25,\"\"),IF(AND(YEAR(AprDum1+32)=AnulCalendaristic,MONTH(AprDum1+32)=4),AprDum1+32,\"\"))","v":""},{"$f":"IF(DAY(AprDum1)=1,IF(AND(YEAR(AprDum1+26)=AnulCalendaristic,MONTH(AprDum1+26)=4),AprDum1+26,\"\"),IF(AND(YEAR(AprDum1+33)=AnulCalendaristic,MONTH(AprDum1+33)=4),AprDum1+33,\"\"))","v":""},{"$f":"IF(DAY(AprDum1)=1,IF(AND(YEAR(AprDum1+27)=AnulCalendaristic,MONTH(AprDum1+27)=4),AprDum1+27,\"\"),IF(AND(YEAR(AprDum1+34)=AnulCalendaristic,MONTH(AprDum1+34)=4),AprDum1+34,\"\"))","v":""},{"$f":"IF(DAY(AprDum1)=1,IF(AND(YEAR(AprDum1+28)=AnulCalendaristic,MONTH(AprDum1+28)=4),AprDum1+28,\"\"),IF(AND(YEAR(AprDum1+35)=AnulCalendaristic,MONTH(AprDum1+35)=4),AprDum1+35,\"\"))","v":""}]
[null,null,{"$f":"IF(DAY(IanDum1)=1,IF(AND(YEAR(IanDum1+29)=AnulCalendaristic,MONTH(IanDum1+29)=1),IanDum1+29,\"\"),IF(AND(YEAR(IanDum1+36)=AnulCalendaristic,MONTH(IanDum1+36)=1),IanDum1+36,\"\"))","v":""},{"$f":"IF(DAY(IanDum1)=1,IF(AND(YEAR(IanDum1+30)=AnulCalendaristic,MONTH(IanDum1+30)=1),IanDum1+30,\"\"),IF(AND(YEAR(IanDum1+37)=AnulCalendaristic,MONTH(IanDum1+37)=1),IanDum1+37,\"\"))","v":""},{"$f":"IF(DAY(IanDum1)=1,IF(AND(YEAR(IanDum1+31)=AnulCalendaristic,MONTH(IanDum1+31)=1),IanDum1+31,\"\"),IF(AND(YEAR(IanDum1+38)=AnulCalendaristic,MONTH(IanDum1+38)=1),IanDum1+38,\"\"))","v":""},{"$f":"IF(DAY(IanDum1)=1,IF(AND(YEAR(IanDum1+32)=AnulCalendaristic,MONTH(IanDum1+32)=1),IanDum1+32,\"\"),IF(AND(YEAR(IanDum1+39)=AnulCalendaristic,MONTH(IanDum1+39)=1),IanDum1+39,\"\"))","v":""},{"$f":"IF(DAY(IanDum1)=1,IF(AND(YEAR(IanDum1+33)=AnulCalendaristic,MONTH(IanDum1+33)=1),IanDum1+33,\"\"),IF(AND(YEAR(IanDum1+40)=AnulCalendaristic,MONTH(IanDum1+40)=1),IanDum1+40,\"\"))","v":""},{"$f":"IF(DAY(IanDum1)=1,IF(AND(YEAR(IanDum1+34)=AnulCalendaristic,MONTH(IanDum1+34)=1),IanDum1+34,\"\"),IF(AND(YEAR(IanDum1+41)=AnulCalendaristic,MONTH(IanDum1+41)=1),IanDum1+41,\"\"))","v":""},{"$f":"IF(DAY(IanDum1)=1,IF(AND(YEAR(IanDum1+35)=AnulCalendaristic,MONTH(IanDum1+35)=1),IanDum1+35,\"\"),IF(AND(YEAR(IanDum1+42)=AnulCalendaristic,MONTH(IanDum1+42)=1),IanDum1+42,\"\"))","v":""},null,null,{"$f":"IF(DAY(FebDum1)=1,IF(AND(YEAR(FebDum1+29)=AnulCalendaristic,MONTH(FebDum1+29)=2),FebDum1+29,\"\"),IF(AND(YEAR(FebDum1+36)=AnulCalendaristic,MONTH(FebDum1+36)=2),FebDum1+36,\"\"))","v":""},{"$f":"IF(DAY(FebDum1)=1,IF(AND(YEAR(FebDum1+30)=AnulCalendaristic,MONTH(FebDum1+30)=2),FebDum1+30,\"\"),IF(AND(YEAR(FebDum1+37)=AnulCalendaristic,MONTH(FebDum1+37)=2),FebDum1+37,\"\"))","v":""},{"$f":"IF(DAY(FebDum1)=1,IF(AND(YEAR(FebDum1+31)=AnulCalendaristic,MONTH(FebDum1+31)=2),FebDum1+31,\"\"),IF(AND(YEAR(FebDum1+38)=AnulCalendaristic,MONTH(FebDum1+38)=2),FebDum1+38,\"\"))","v":""},{"$f":"IF(DAY(FebDum1)=1,IF(AND(YEAR(FebDum1+32)=AnulCalendaristic,MONTH(FebDum1+32)=2),FebDum1+32,\"\"),IF(AND(YEAR(FebDum1+39)=AnulCalendaristic,MONTH(FebDum1+39)=2),FebDum1+39,\"\"))","v":""},{"$f":"IF(DAY(FebDum1)=1,IF(AND(YEAR(FebDum1+33)=AnulCalendaristic,MONTH(FebDum1+33)=2),FebDum1+33,\"\"),IF(AND(YEAR(FebDum1+40)=AnulCalendaristic,MONTH(FebDum1+40)=2),FebDum1+40,\"\"))","v":""},{"$f":"IF(DAY(FebDum1)=1,IF(AND(YEAR(FebDum1+34)=AnulCalendaristic,MONTH(FebDum1+34)=2),FebDum1+34,\"\"),IF(AND(YEAR(FebDum1+41)=AnulCalendaristic,MONTH(FebDum1+41)=2),FebDum1+41,\"\"))","v":""},{"$f":"IF(DAY(FebDum1)=1,IF(AND(YEAR(FebDum1+35)=AnulCalendaristic,MONTH(FebDum1+35)=2),FebDum1+35,\"\"),IF(AND(YEAR(FebDum1+42)=AnulCalendaristic,MONTH(FebDum1+42)=2),FebDum1+42,\"\"))","v":""},null,null,{"$f":"IF(DAY(MarDum1)=1,IF(AND(YEAR(MarDum1+29)=AnulCalendaristic,MONTH(MarDum1+29)=3),MarDum1+29,\"\"),IF(AND(YEAR(MarDum1+36)=AnulCalendaristic,MONTH(MarDum1+36)=3),MarDum1+36,\"\"))","v":""},{"$f":"IF(DAY(MarDum1)=1,IF(AND(YEAR(MarDum1+30)=AnulCalendaristic,MONTH(MarDum1+30)=3),MarDum1+30,\"\"),IF(AND(YEAR(MarDum1+37)=AnulCalendaristic,MONTH(MarDum1+37)=3),MarDum1+37,\"\"))","v":""},{"$f":"IF(DAY(MarDum1)=1,IF(AND(YEAR(MarDum1+31)=AnulCalendaristic,MONTH(MarDum1+31)=3),MarDum1+31,\"\"),IF(AND(YEAR(MarDum1+38)=AnulCalendaristic,MONTH(MarDum1+38)=3),MarDum1+38,\"\"))","v":""},{"$f":"IF(DAY(MarDum1)=1,IF(AND(YEAR(MarDum1+32)=AnulCalendaristic,MONTH(MarDum1+32)=3),MarDum1+32,\"\"),IF(AND(YEAR(MarDum1+39)=AnulCalendaristic,MONTH(MarDum1+39)=3),MarDum1+39,\"\"))","v":""},{"$f":"IF(DAY(MarDum1)=1,IF(AND(YEAR(MarDum1+33)=AnulCalendaristic,MONTH(MarDum1+33)=3),MarDum1+33,\"\"),IF(AND(YEAR(MarDum1+40)=AnulCalendaristic,MONTH(MarDum1+40)=3),MarDum1+40,\"\"))","v":""},{"$f":"IF(DAY(MarDum1)=1,IF(AND(YEAR(MarDum1+34)=AnulCalendaristic,MONTH(MarDum1+34)=3),MarDum1+34,\"\"),IF(AND(YEAR(MarDum1+41)=AnulCalendaristic,MONTH(MarDum1+41)=3),MarDum1+41,\"\"))","v":""},{"$f":"IF(DAY(MarDum1)=1,IF(AND(YEAR(MarDum1+35)=AnulCalendaristic,MONTH(MarDum1+35)=3),MarDum1+35,\"\"),IF(AND(YEAR(MarDum1+42)=AnulCalendaristic,MONTH(MarDum1+42)=3),MarDum1+42,\"\"))","v":""},null,null,{"$f":"IF(DAY(AprDum1)=1,IF(AND(YEAR(AprDum1+29)=AnulCalendaristic,MONTH(AprDum1+29)=4),AprDum1+29,\"\"),IF(AND(YEAR(AprDum1+36)=AnulCalendaristic,MONTH(AprDum1+36)=4),AprDum1+36,\"\"))","v":""},{"$f":"IF(DAY(AprDum1)=1,IF(AND(YEAR(AprDum1+30)=AnulCalendaristic,MONTH(AprDum1+30)=4),AprDum1+30,\"\"),IF(AND(YEAR(AprDum1+37)=AnulCalendaristic,MONTH(AprDum1+37)=4),AprDum1+37,\"\"))","v":""},{"$f":"IF(DAY(AprDum1)=1,IF(AND(YEAR(AprDum1+31)=AnulCalendaristic,MONTH(AprDum1+31)=4),AprDum1+31,\"\"),IF(AND(YEAR(AprDum1+38)=AnulCalendaristic,MONTH(AprDum1+38)=4),AprDum1+38,\"\"))","v":""},{"$f":"IF(DAY(AprDum1)=1,IF(AND(YEAR(AprDum1+32)=AnulCalendaristic,MONTH(AprDum1+32)=4),AprDum1+32,\"\"),IF(AND(YEAR(AprDum1+39)=AnulCalendaristic,MONTH(AprDum1+39)=4),AprDum1+39,\"\"))","v":""},{"$f":"IF(DAY(AprDum1)=1,IF(AND(YEAR(AprDum1+33)=AnulCalendaristic,MONTH(AprDum1+33)=4),AprDum1+33,\"\"),IF(AND(YEAR(AprDum1+40)=AnulCalendaristic,MONTH(AprDum1+40)=4),AprDum1+40,\"\"))","v":""},{"$f":"IF(DAY(AprDum1)=1,IF(AND(YEAR(AprDum1+34)=AnulCalendaristic,MONTH(AprDum1+34)=4),AprDum1+34,\"\"),IF(AND(YEAR(AprDum1+41)=AnulCalendaristic,MONTH(AprDum1+41)=4),AprDum1+41,\"\"))","v":""},{"$f":"IF(DAY(AprDum1)=1,IF(AND(YEAR(AprDum1+35)=AnulCalendaristic,MONTH(AprDum1+35)=4),AprDum1+35,\"\"),IF(AND(YEAR(AprDum1+42)=AnulCalendaristic,MONTH(AprDum1+42)=4),AprDum1+42,\"\"))","v":""}]
[]
[null,null,{"$f":"DATE(AnulCalendaristic,5,1)","v":"2019-05-01"},{"$nulls":8},{"$f":"DATE(AnulCalendaristic,6,1)","v":"2019-06-01"},{"$nulls":8},{"$f":"DATE(AnulCalendaristic,7,1)","v":"2019-07-01"},{"$nulls":8},{"$f":"DATE(AnulCalendaristic,8,1)","v":"2019-08-01"}]
[null,null,"L","M","M","J","V","S","D",null,null,"L","M","M","J","V","S","D",null,null,"L","M","M","J","V","S","D",null,null,"L","M","M","J","V","S","D"]
[null,null,{"$f":"IF(DAY(MaiDum1)=1,\"\",IF(AND(YEAR(MaiDum1+1)=AnulCalendaristic,MONTH(MaiDum1+1)=5),MaiDum1+1,\"\"))","v":""},{"$f":"IF(DAY(MaiDum1)=1,\"\",IF(AND(YEAR(MaiDum1+2)=AnulCalendaristic,MONTH(MaiDum1+2)=5),MaiDum1+2,\"\"))","v":""},{"$f":"IF(DAY(MaiDum1)=1,\"\",IF(AND(YEAR(MaiDum1+3)=AnulCalendaristic,MONTH(MaiDum1+3)=5),MaiDum1+3,\"\"))","v":"2019-05-01"},{"$f":"IF(DAY(MaiDum1)=1,\"\",IF(AND(YEAR(MaiDum1+4)=AnulCalendaristic,MONTH(MaiDum1+4)=5),MaiDum1+4,\"\"))","v":"2019-05-02"},{"$f":"IF(DAY(MaiDum1)=1,\"\",IF(AND(YEAR(MaiDum1+5)=AnulCalendaristic,MONTH(MaiDum1+5)=5),MaiDum1+5,\"\"))","v":"2019-05-03"},{"$f":"IF(DAY(MaiDum1)=1,\"\",IF(AND(YEAR(MaiDum1+6)=AnulCalendaristic,MONTH(MaiDum1+6)=5),MaiDum1+6,\"\"))","v":"2019-05-04"},{"$f":"IF(DAY(MaiDum1)=1,IF(AND(YEAR(MaiDum1)=AnulCalendaristic,MONTH(MaiDum1)=5),MaiDum1,\"\"),IF(AND(YEAR(MaiDum1+7)=AnulCalendaristic,MONTH(MaiDum1+7)=5),MaiDum1+7,\"\"))","v":"2019-05-05"},null,null,{"$f":"IF(DAY(IunDum1)=1,\"\",IF(AND(YEAR(IunDum1+1)=AnulCalendaristic,MONTH(IunDum1+1)=6),IunDum1+1,\"\"))","v":""},{"$f":"IF(DAY(IunDum1)=1,\"\",IF(AND(YEAR(IunDum1+2)=AnulCalendaristic,MONTH(IunDum1+2)=6),IunDum1+2,\"\"))","v":""},{"$f":"IF(DAY(IunDum1)=1,\"\",IF(AND(YEAR(IunDum1+3)=AnulCalendaristic,MONTH(IunDum1+3)=6),IunDum1+3,\"\"))","v":""},{"$f":"IF(DAY(IunDum1)=1,\"\",IF(AND(YEAR(IunDum1+4)=AnulCalendaristic,MONTH(IunDum1+4)=6),IunDum1+4,\"\"))","v":""},{"$f":"IF(DAY(IunDum1)=1,\"\",IF(AND(YEAR(IunDum1+5)=AnulCalendaristic,MONTH(IunDum1+5)=6),IunDum1+5,\"\"))","v":""},{"$f":"IF(DAY(IunDum1)=1,\"\",IF(AND(YEAR(IunDum1+6)=AnulCalendaristic,MONTH(IunDum1+6)=6),IunDum1+6,\"\"))","v":"2019-06-01"},{"$f":"IF(DAY(IunDum1)=1,IF(AND(YEAR(IunDum1)=AnulCalendaristic,MONTH(IunDum1)=6),IunDum1,\"\"),IF(AND(YEAR(IunDum1+7)=AnulCalendaristic,MONTH(IunDum1+7)=6),IunDum1+7,\"\"))","v":"2019-06-02"},null,null,{"$f":"IF(DAY(IulDum1)=1,\"\",IF(AND(YEAR(IulDum1+1)=AnulCalendaristic,MONTH(IulDum1+1)=7),IulDum1+1,\"\"))","v":"2019-07-01"},{"$f":"IF(DAY(IulDum1)=1,\"\",IF(AND(YEAR(IulDum1+2)=AnulCalendaristic,MONTH(IulDum1+2)=7),IulDum1+2,\"\"))","v":"2019-07-02"},{"$f":"IF(DAY(IulDum1)=1,\"\",IF(AND(YEAR(IulDum1+3)=AnulCalendaristic,MONTH(IulDum1+3)=7),IulDum1+3,\"\"))","v":"2019-07-03"},{"$f":"IF(DAY(IulDum1)=1,\"\",IF(AND(YEAR(IulDum1+4)=AnulCalendaristic,MONTH(IulDum1+4)=7),IulDum1+4,\"\"))","v":"2019-07-04"},{"$f":"IF(DAY(IulDum1)=1,\"\",IF(AND(YEAR(IulDum1+5)=AnulCalendaristic,MONTH(IulDum1+5)=7),IulDum1+5,\"\"))","v":"2019-07-05"},{"$f":"IF(DAY(IulDum1)=1,\"\",IF(AND(YEAR(IulDum1+6)=AnulCalendaristic,MONTH(IulDum1+6)=7),IulDum1+6,\"\"))","v":"2019-07-06"},{"$f":"IF(DAY(IulDum1)=1,IF(AND(YEAR(IulDum1)=AnulCalendaristic,MONTH(IulDum1)=7),IulDum1,\"\"),IF(AND(YEAR(IulDum1+7)=AnulCalendaristic,MONTH(IulDum1+7)=7),IulDum1+7,\"\"))","v":"2019-07-07"},null,null,{"$f":"IF(DAY(AugDum1)=1,\"\",IF(AND(YEAR(AugDum1+1)=AnulCalendaristic,MONTH(AugDum1+1)=8),AugDum1+1,\"\"))","v":""},{"$f":"IF(DAY(AugDum1)=1,\"\",IF(AND(YEAR(AugDum1+2)=AnulCalendaristic,MONTH(AugDum1+2)=8),AugDum1+2,\"\"))","v":""},{"$f":"IF(DAY(AugDum1)=1,\"\",IF(AND(YEAR(AugDum1+3)=AnulCalendaristic,MONTH(AugDum1+3)=8),AugDum1+3,\"\"))","v":""},{"$f":"IF(DAY(AugDum1)=1,\"\",IF(AND(YEAR(AugDum1+4)=AnulCalendaristic,MONTH(AugDum1+4)=8),AugDum1+4,\"\"))","v":"2019-08-01"},{"$f":"IF(DAY(AugDum1)=1,\"\",IF(AND(YEAR(AugDum1+5)=AnulCalendaristic,MONTH(AugDum1+5)=8),AugDum1+5,\"\"))","v":"2019-08-02"},{"$f":"IF(DAY(AugDum1)=1,\"\",IF(AND(YEAR(AugDum1+6)=AnulCalendaristic,MONTH(AugDum1+6)=8),AugDum1+6,\"\"))","v":"2019-08-03"},{"$f":"IF(DAY(AugDum1)=1,IF(AND(YEAR(AugDum1)=AnulCalendaristic,MONTH(AugDum1)=8),AugDum1,\"\"),IF(AND(YEAR(AugDum1+7)=AnulCalendaristic,MONTH(AugDum1+7)=8),AugDum1+7,\"\"))","v":"2019-08-04"}]
[null,null,{"$f":"IF(DAY(MaiDum1)=1,IF(AND(YEAR(MaiDum1+1)=AnulCalendaristic,MONTH(MaiDum1+1)=5),MaiDum1+1,\"\"),IF(AND(YEAR(MaiDum1+8)=AnulCalendaristic,MONTH(MaiDum1+8)=5),MaiDum1+8,\"\"))","v":"2019-05-06"},{"$f":"IF(DAY(MaiDum1)=1,IF(AND(YEAR(MaiDum1+2)=AnulCalendaristic,MONTH(MaiDum1+2)=5),MaiDum1+2,\"\"),IF(AND(YEAR(MaiDum1+9)=AnulCalendaristic,MONTH(MaiDum1+9)=5),MaiDum1+9,\"\"))","v":"2019-05-07"},{"$f":"IF(DAY(MaiDum1)=1,IF(AND(YEAR(MaiDum1+3)=AnulCalendaristic,MONTH(MaiDum1+3)=5),MaiDum1+3,\"\"),IF(AND(YEAR(MaiDum1+10)=AnulCalendaristic,MONTH(MaiDum1+10)=5),MaiDum1+10,\"\"))","v":"2019-05-08"},{"$f":"IF(DAY(MaiDum1)=1,IF(AND(YEAR(MaiDum1+4)=AnulCalendaristic,MONTH(MaiDum1+4)=5),MaiDum1+4,\"\"),IF(AND(YEAR(MaiDum1+11)=AnulCalendaristic,MONTH(MaiDum1+11)=5),MaiDum1+11,\"\"))","v":"2019-05-09"},{"$f":"IF(DAY(MaiDum1)=1,IF(AND(YEAR(MaiDum1+5)=AnulCalendaristic,MONTH(MaiDum1+5)=5),MaiDum1+5,\"\"),IF(AND(YEAR(MaiDum1+12)=AnulCalendaristic,MONTH(MaiDum1+12)=5),MaiDum1+12,\"\"))","v":"2019-05-10"},{"$f":"IF(DAY(MaiDum1)=1,IF(AND(YEAR(MaiDum1+6)=AnulCalendaristic,MONTH(MaiDum1+6)=5),MaiDum1+6,\"\"),IF(AND(YEAR(MaiDum1+13)=AnulCalendaristic,MONTH(MaiDum1+13)=5),MaiDum1+13,\"\"))","v":"2019-05-11"},{"$f":"IF(DAY(MaiDum1)=1,IF(AND(YEAR(MaiDum1+7)=AnulCalendaristic,MONTH(MaiDum1+7)=5),MaiDum1+7,\"\"),IF(AND(YEAR(MaiDum1+14)=AnulCalendaristic,MONTH(MaiDum1+14)=5),MaiDum1+14,\"\"))","v":"2019-05-12"},null,null,{"$f":"IF(DAY(IunDum1)=1,IF(AND(YEAR(IunDum1+1)=AnulCalendaristic,MONTH(IunDum1+1)=6),IunDum1+1,\"\"),IF(AND(YEAR(IunDum1+8)=AnulCalendaristic,MONTH(IunDum1+8)=6),IunDum1+8,\"\"))","v":"2019-06-03"},{"$f":"IF(DAY(IunDum1)=1,IF(AND(YEAR(IunDum1+2)=AnulCalendaristic,MONTH(IunDum1+2)=6),IunDum1+2,\"\"),IF(AND(YEAR(IunDum1+9)=AnulCalendaristic,MONTH(IunDum1+9)=6),IunDum1+9,\"\"))","v":"2019-06-04"},{"$f":"IF(DAY(IunDum1)=1,IF(AND(YEAR(IunDum1+3)=AnulCalendaristic,MONTH(IunDum1+3)=6),IunDum1+3,\"\"),IF(AND(YEAR(IunDum1+10)=AnulCalendaristic,MONTH(IunDum1+10)=6),IunDum1+10,\"\"))","v":"2019-06-05"},{"$f":"IF(DAY(IunDum1)=1,IF(AND(YEAR(IunDum1+4)=AnulCalendaristic,MONTH(IunDum1+4)=6),IunDum1+4,\"\"),IF(AND(YEAR(IunDum1+11)=AnulCalendaristic,MONTH(IunDum1+11)=6),IunDum1+11,\"\"))","v":"2019-06-06"},{"$f":"IF(DAY(IunDum1)=1,IF(AND(YEAR(IunDum1+5)=AnulCalendaristic,MONTH(IunDum1+5)=6),IunDum1+5,\"\"),IF(AND(YEAR(IunDum1+12)=AnulCalendaristic,MONTH(IunDum1+12)=6),IunDum1+12,\"\"))","v":"2019-06-07"},{"$f":"IF(DAY(IunDum1)=1,IF(AND(YEAR(IunDum1+6)=AnulCalendaristic,MONTH(IunDum1+6)=6),IunDum1+6,\"\"),IF(AND(YEAR(IunDum1+13)=AnulCalendaristic,MONTH(IunDum1+13)=6),IunDum1+13,\"\"))","v":"2019-06-08"},{"$f":"IF(DAY(IunDum1)=1,IF(AND(YEAR(IunDum1+7)=AnulCalendaristic,MONTH(IunDum1+7)=6),IunDum1+7,\"\"),IF(AND(YEAR(IunDum1+14)=AnulCalendaristic,MONTH(IunDum1+14)=6),IunDum1+14,\"\"))","v":"2019-06-09"},null,null,{"$f":"IF(DAY(IulDum1)=1,IF(AND(YEAR(IulDum1+1)=AnulCalendaristic,MONTH(IulDum1+1)=7),IulDum1+1,\"\"),IF(AND(YEAR(IulDum1+8)=AnulCalendaristic,MONTH(IulDum1+8)=7),IulDum1+8,\"\"))","v":"2019-07-08"},{"$f":"IF(DAY(IulDum1)=1,IF(AND(YEAR(IulDum1+2)=AnulCalendaristic,MONTH(IulDum1+2)=7),IulDum1+2,\"\"),IF(AND(YEAR(IulDum1+9)=AnulCalendaristic,MONTH(IulDum1+9)=7),IulDum1+9,\"\"))","v":"2019-07-09"},{"$f":"IF(DAY(IulDum1)=1,IF(AND(YEAR(IulDum1+3)=AnulCalendaristic,MONTH(IulDum1+3)=7),IulDum1+3,\"\"),IF(AND(YEAR(IulDum1+10)=AnulCalendaristic,MONTH(IulDum1+10)=7),IulDum1+10,\"\"))","v":"2019-07-10"},{"$f":"IF(DAY(IulDum1)=1,IF(AND(YEAR(IulDum1+4)=AnulCalendaristic,MONTH(IulDum1+4)=7),IulDum1+4,\"\"),IF(AND(YEAR(IulDum1+11)=AnulCalendaristic,MONTH(IulDum1+11)=7),IulDum1+11,\"\"))","v":"2019-07-11"},{"$f":"IF(DAY(IulDum1)=1,IF(AND(YEAR(IulDum1+5)=AnulCalendaristic,MONTH(IulDum1+5)=7),IulDum1+5,\"\"),IF(AND(YEAR(IulDum1+12)=AnulCalendaristic,MONTH(IulDum1+12)=7),IulDum1+12,\"\"))","v":"2019-07-12"},{"$f":"IF(DAY(IulDum1)=1,IF(AND(YEAR(IulDum1+6)=AnulCalendaristic,MONTH(IulDum1+6)=7),IulDum1+6,\"\"),IF(AND(YEAR(IulDum1+13)=AnulCalendaristic,MONTH(IulDum1+13)=7),IulDum1+13,\"\"))","v":"2019-07-13"},{"$f":"IF(DAY(IulDum1)=1,IF(AND(YEAR(IulDum1+7)=AnulCalendaristic,MONTH(IulDum1+7)=7),IulDum1+7,\"\"),IF(AND(YEAR(IulDum1+14)=AnulCalendaristic,MONTH(IulDum1+14)=7),IulDum1+14,\"\"))","v":"2019-07-14"},null,null,{"$f":"IF(DAY(AugDum1)=1,IF(AND(YEAR(AugDum1+1)=AnulCalendaristic,MONTH(AugDum1+1)=8),AugDum1+1,\"\"),IF(AND(YEAR(AugDum1+8)=AnulCalendaristic,MONTH(AugDum1+8)=8),AugDum1+8,\"\"))","v":"2019-08-05"},{"$f":"IF(DAY(AugDum1)=1,IF(AND(YEAR(AugDum1+2)=AnulCalendaristic,MONTH(AugDum1+2)=8),AugDum1+2,\"\"),IF(AND(YEAR(AugDum1+9)=AnulCalendaristic,MONTH(AugDum1+9)=8),AugDum1+9,\"\"))","v":"2019-08-06"},{"$f":"IF(DAY(AugDum1)=1,IF(AND(YEAR(AugDum1+3)=AnulCalendaristic,MONTH(AugDum1+3)=8),AugDum1+3,\"\"),IF(AND(YEAR(AugDum1+10)=AnulCalendaristic,MONTH(AugDum1+10)=8),AugDum1+10,\"\"))","v":"2019-08-07"},{"$f":"IF(DAY(AugDum1)=1,IF(AND(YEAR(AugDum1+4)=AnulCalendaristic,MONTH(AugDum1+4)=8),AugDum1+4,\"\"),IF(AND(YEAR(AugDum1+11)=AnulCalendaristic,MONTH(AugDum1+11)=8),AugDum1+11,\"\"))","v":"2019-08-08"},{"$f":"IF(DAY(AugDum1)=1,IF(AND(YEAR(AugDum1+5)=AnulCalendaristic,MONTH(AugDum1+5)=8),AugDum1+5,\"\"),IF(AND(YEAR(AugDum1+12)=AnulCalendaristic,MONTH(AugDum1+12)=8),AugDum1+12,\"\"))","v":"2019-08-09"},{"$f":"IF(DAY(AugDum1)=1,IF(AND(YEAR(AugDum1+6)=AnulCalendaristic,MONTH(AugDum1+6)=8),AugDum1+6,\"\"),IF(AND(YEAR(AugDum1+13)=AnulCalendaristic,MONTH(AugDum1+13)=8),AugDum1+13,\"\"))","v":"2019-08-10"},{"$f":"IF(DAY(AugDum1)=1,IF(AND(YEAR(AugDum1+7)=AnulCalendaristic,MONTH(AugDum1+7)=8),AugDum1+7,\"\"),IF(AND(YEAR(AugDum1+14)=AnulCalendaristic,MONTH(AugDum1+14)=8),AugDum1+14,\"\"))","v":"2019-08-11"}]
[null,null,{"$f":"IF(DAY(MaiDum1)=1,IF(AND(YEAR(MaiDum1+8)=AnulCalendaristic,MONTH(MaiDum1+8)=5),MaiDum1+8,\"\"),IF(AND(YEAR(MaiDum1+15)=AnulCalendaristic,MONTH(MaiDum1+15)=5),MaiDum1+15,\"\"))","v":"2019-05-13"},{"$f":"IF(DAY(MaiDum1)=1,IF(AND(YEAR(MaiDum1+9)=AnulCalendaristic,MONTH(MaiDum1+9)=5),MaiDum1+9,\"\"),IF(AND(YEAR(MaiDum1+16)=AnulCalendaristic,MONTH(MaiDum1+16)=5),MaiDum1+16,\"\"))","v":"2019-05-14"},{"$f":"IF(DAY(MaiDum1)=1,IF(AND(YEAR(MaiDum1+10)=AnulCalendaristic,MONTH(MaiDum1+10)=5),MaiDum1+10,\"\"),IF(AND(YEAR(MaiDum1+17)=AnulCalendaristic,MONTH(MaiDum1+17)=5),MaiDum1+17,\"\"))","v":"2019-05-15"},{"$f":"IF(DAY(MaiDum1)=1,IF(AND(YEAR(MaiDum1+11)=AnulCalendaristic,MONTH(MaiDum1+11)=5),MaiDum1+11,\"\"),IF(AND(YEAR(MaiDum1+18)=AnulCalendaristic,MONTH(MaiDum1+18)=5),MaiDum1+18,\"\"))","v":"2019-05-16"},{"$f":"IF(DAY(MaiDum1)=1,IF(AND(YEAR(MaiDum1+12)=AnulCalendaristic,MONTH(MaiDum1+12)=5),MaiDum1+12,\"\"),IF(AND(YEAR(MaiDum1+19)=AnulCalendaristic,MONTH(MaiDum1+19)=5),MaiDum1+19,\"\"))","v":"2019-05-17"},{"$f":"IF(DAY(MaiDum1)=1,IF(AND(YEAR(MaiDum1+13)=AnulCalendaristic,MONTH(MaiDum1+13)=5),MaiDum1+13,\"\"),IF(AND(YEAR(MaiDum1+20)=AnulCalendaristic,MONTH(MaiDum1+20)=5),MaiDum1+20,\"\"))","v":"2019-05-18"},{"$f":"IF(DAY(MaiDum1)=1,IF(AND(YEAR(MaiDum1+14)=AnulCalendaristic,MONTH(MaiDum1+14)=5),MaiDum1+14,\"\"),IF(AND(YEAR(MaiDum1+21)=AnulCalendaristic,MONTH(MaiDum1+21)=5),MaiDum1+21,\"\"))","v":"2019-05-19"},null,null,{"$f":"IF(DAY(IunDum1)=1,IF(AND(YEAR(IunDum1+8)=AnulCalendaristic,MONTH(IunDum1+8)=6),IunDum1+8,\"\"),IF(AND(YEAR(IunDum1+15)=AnulCalendaristic,MONTH(IunDum1+15)=6),IunDum1+15,\"\"))","v":"2019-06-10"},{"$f":"IF(DAY(IunDum1)=1,IF(AND(YEAR(IunDum1+9)=AnulCalendaristic,MONTH(IunDum1+9)=6),IunDum1+9,\"\"),IF(AND(YEAR(IunDum1+16)=AnulCalendaristic,MONTH(IunDum1+16)=6),IunDum1+16,\"\"))","v":"2019-06-11"},{"$f":"IF(DAY(IunDum1)=1,IF(AND(YEAR(IunDum1+10)=AnulCalendaristic,MONTH(IunDum1+10)=6),IunDum1+10,\"\"),IF(AND(YEAR(IunDum1+17)=AnulCalendaristic,MONTH(IunDum1+17)=6),IunDum1+17,\"\"))","v":"2019-06-12"},{"$f":"IF(DAY(IunDum1)=1,IF(AND(YEAR(IunDum1+11)=AnulCalendaristic,MONTH(IunDum1+11)=6),IunDum1+11,\"\"),IF(AND(YEAR(IunDum1+18)=AnulCalendaristic,MONTH(IunDum1+18)=6),IunDum1+18,\"\"))","v":"2019-06-13"},{"$f":"IF(DAY(IunDum1)=1,IF(AND(YEAR(IunDum1+12)=AnulCalendaristic,MONTH(IunDum1+12)=6),IunDum1+12,\"\"),IF(AND(YEAR(IunDum1+19)=AnulCalendaristic,MONTH(IunDum1+19)=6),IunDum1+19,\"\"))","v":"2019-06-14"},{"$f":"IF(DAY(IunDum1)=1,IF(AND(YEAR(IunDum1+13)=AnulCalendaristic,MONTH(IunDum1+13)=6),IunDum1+13,\"\"),IF(AND(YEAR(IunDum1+20)=AnulCalendaristic,MONTH(IunDum1+20)=6),IunDum1+20,\"\"))","v":"2019-06-15"},{"$f":"IF(DAY(IunDum1)=1,IF(AND(YEAR(IunDum1+14)=AnulCalendaristic,MONTH(IunDum1+14)=6),IunDum1+14,\"\"),IF(AND(YEAR(IunDum1+21)=AnulCalendaristic,MONTH(IunDum1+21)=6),IunDum1+21,\"\"))","v":"2019-06-16"},null,null,{"$f":"IF(DAY(IulDum1)=1,IF(AND(YEAR(IulDum1+8)=AnulCalendaristic,MONTH(IulDum1+8)=7),IulDum1+8,\"\"),IF(AND(YEAR(IulDum1+15)=AnulCalendaristic,MONTH(IulDum1+15)=7),IulDum1+15,\"\"))","v":"2019-07-15"},{"$f":"IF(DAY(IulDum1)=1,IF(AND(YEAR(IulDum1+9)=AnulCalendaristic,MONTH(IulDum1+9)=7),IulDum1+9,\"\"),IF(AND(YEAR(IulDum1+16)=AnulCalendaristic,MONTH(IulDum1+16)=7),IulDum1+16,\"\"))","v":"2019-07-16"},{"$f":"IF(DAY(IulDum1)=1,IF(AND(YEAR(IulDum1+10)=AnulCalendaristic,MONTH(IulDum1+10)=7),IulDum1+10,\"\"),IF(AND(YEAR(IulDum1+17)=AnulCalendaristic,MONTH(IulDum1+17)=7),IulDum1+17,\"\"))","v":"2019-07-17"},{"$f":"IF(DAY(IulDum1)=1,IF(AND(YEAR(IulDum1+11)=AnulCalendaristic,MONTH(IulDum1+11)=7),IulDum1+11,\"\"),IF(AND(YEAR(IulDum1+18)=AnulCalendaristic,MONTH(IulDum1+18)=7),IulDum1+18,\"\"))","v":"2019-07-18"},{"$f":"IF(DAY(IulDum1)=1,IF(AND(YEAR(IulDum1+12)=AnulCalendaristic,MONTH(IulDum1+12)=7),IulDum1+12,\"\"),IF(AND(YEAR(IulDum1+19)=AnulCalendaristic,MONTH(IulDum1+19)=7),IulDum1+19,\"\"))","v":"2019-07-19"},{"$f":"IF(DAY(IulDum1)=1,IF(AND(YEAR(IulDum1+13)=AnulCalendaristic,MONTH(IulDum1+13)=7),IulDum1+13,\"\"),IF(AND(YEAR(IulDum1+20)=AnulCalendaristic,MONTH(IulDum1+20)=7),IulDum1+20,\"\"))","v":"2019-07-20"},{"$f":"IF(DAY(IulDum1)=1,IF(AND(YEAR(IulDum1+14)=AnulCalendaristic,MONTH(IulDum1+14)=7),IulDum1+14,\"\"),IF(AND(YEAR(IulDum1+21)=AnulCalendaristic,MONTH(IulDum1+21)=7),IulDum1+21,\"\"))","v":"2019-07-21"},null,null,{"$f":"IF(DAY(AugDum1)=1,IF(AND(YEAR(AugDum1+8)=AnulCalendaristic,MONTH(AugDum1+8)=8),AugDum1+8,\"\"),IF(AND(YEAR(AugDum1+15)=AnulCalendaristic,MONTH(AugDum1+15)=8),AugDum1+15,\"\"))","v":"2019-08-12"},{"$f":"IF(DAY(AugDum1)=1,IF(AND(YEAR(AugDum1+9)=AnulCalendaristic,MONTH(AugDum1+9)=8),AugDum1+9,\"\"),IF(AND(YEAR(AugDum1+16)=AnulCalendaristic,MONTH(AugDum1+16)=8),AugDum1+16,\"\"))","v":"2019-08-13"},{"$f":"IF(DAY(AugDum1)=1,IF(AND(YEAR(AugDum1+10)=AnulCalendaristic,MONTH(AugDum1+10)=8),AugDum1+10,\"\"),IF(AND(YEAR(AugDum1+17)=AnulCalendaristic,MONTH(AugDum1+17)=8),AugDum1+17,\"\"))","v":"2019-08-14"},{"$f":"IF(DAY(AugDum1)=1,IF(AND(YEAR(AugDum1+11)=AnulCalendaristic,MONTH(AugDum1+11)=8),AugDum1+11,\"\"),IF(AND(YEAR(AugDum1+18)=AnulCalendaristic,MONTH(AugDum1+18)=8),AugDum1+18,\"\"))","v":"2019-08-15"},{"$f":"IF(DAY(AugDum1)=1,IF(AND(YEAR(AugDum1+12)=AnulCalendaristic,MONTH(AugDum1+12)=8),AugDum1+12,\"\"),IF(AND(YEAR(AugDum1+19)=AnulCalendaristic,MONTH(AugDum1+19)=8),AugDum1+19,\"\"))","v":"2019-08-16"},{"$f":"IF(DAY(AugDum1)=1,IF(AND(YEAR(AugDum1+13)=AnulCalendaristic,MONTH(AugDum1+13)=8),AugDum1+13,\"\"),IF(AND(YEAR(AugDum1+20)=AnulCalendaristic,MONTH(AugDum1+20)=8),AugDum1+20,\"\"))","v":"2019-08-17"},{"$f":"IF(DAY(AugDum1)=1,IF(AND(YEAR(AugDum1+14)=AnulCalendaristic,MONTH(AugDum1+14)=8),AugDum1+14,\"\"),IF(AND(YEAR(AugDum1+21)=AnulCalendaristic,MONTH(AugDum1+21)=8),AugDum1+21,\"\"))","v":"2019-08-18"}]
[null,null,{"$f":"IF(DAY(MaiDum1)=1,IF(AND(YEAR(MaiDum1+15)=AnulCalendaristic,MONTH(MaiDum1+15)=5),MaiDum1+15,\"\"),IF(AND(YEAR(MaiDum1+22)=AnulCalendaristic,MONTH(MaiDum1+22)=5),MaiDum1+22,\"\"))","v":"2019-05-20"},{"$f":"IF(DAY(MaiDum1)=1,IF(AND(YEAR(MaiDum1+16)=AnulCalendaristic,MONTH(MaiDum1+16)=5),MaiDum1+16,\"\"),IF(AND(YEAR(MaiDum1+23)=AnulCalendaristic,MONTH(MaiDum1+23)=5),MaiDum1+23,\"\"))","v":"2019-05-21"},{"$f":"IF(DAY(MaiDum1)=1,IF(AND(YEAR(MaiDum1+17)=AnulCalendaristic,MONTH(MaiDum1+17)=5),MaiDum1+17,\"\"),IF(AND(YEAR(MaiDum1+24)=AnulCalendaristic,MONTH(MaiDum1+24)=5),MaiDum1+24,\"\"))","v":"2019-05-22"},{"$f":"IF(DAY(MaiDum1)=1,IF(AND(YEAR(MaiDum1+18)=AnulCalendaristic,MONTH(MaiDum1+18)=5),MaiDum1+18,\"\"),IF(AND(YEAR(MaiDum1+25)=AnulCalendaristic,MONTH(MaiDum1+25)=5),MaiDum1+25,\"\"))","v":"2019-05-23"},{"$f":"IF(DAY(MaiDum1)=1,IF(AND(YEAR(MaiDum1+19)=AnulCalendaristic,MONTH(MaiDum1+19)=5),MaiDum1+19,\"\"),IF(AND(YEAR(MaiDum1+26)=AnulCalendaristic,MONTH(MaiDum1+26)=5),MaiDum1+26,\"\"))","v":"2019-05-24"},{"$f":"IF(DAY(MaiDum1)=1,IF(AND(YEAR(MaiDum1+20)=AnulCalendaristic,MONTH(MaiDum1+20)=5),MaiDum1+20,\"\"),IF(AND(YEAR(MaiDum1+27)=AnulCalendaristic,MONTH(MaiDum1+27)=5),MaiDum1+27,\"\"))","v":"2019-05-25"},{"$f":"IF(DAY(MaiDum1)=1,IF(AND(YEAR(MaiDum1+21)=AnulCalendaristic,MONTH(MaiDum1+21)=5),MaiDum1+21,\"\"),IF(AND(YEAR(MaiDum1+28)=AnulCalendaristic,MONTH(MaiDum1+28)=5),MaiDum1+28,\"\"))","v":"2019-05-26"},null,null,{"$f":"IF(DAY(IunDum1)=1,IF(AND(YEAR(IunDum1+15)=AnulCalendaristic,MONTH(IunDum1+15)=6),IunDum1+15,\"\"),IF(AND(YEAR(IunDum1+22)=AnulCalendaristic,MONTH(IunDum1+22)=6),IunDum1+22,\"\"))","v":"2019-06-17"},{"$f":"IF(DAY(IunDum1)=1,IF(AND(YEAR(IunDum1+16)=AnulCalendaristic,MONTH(IunDum1+16)=6),IunDum1+16,\"\"),IF(AND(YEAR(IunDum1+23)=AnulCalendaristic,MONTH(IunDum1+23)=6),IunDum1+23,\"\"))","v":"2019-06-18"},{"$f":"IF(DAY(IunDum1)=1,IF(AND(YEAR(IunDum1+17)=AnulCalendaristic,MONTH(IunDum1+17)=6),IunDum1+17,\"\"),IF(AND(YEAR(IunDum1+24)=AnulCalendaristic,MONTH(IunDum1+24)=6),IunDum1+24,\"\"))","v":"2019-06-19"},{"$f":"IF(DAY(IunDum1)=1,IF(AND(YEAR(IunDum1+18)=AnulCalendaristic,MONTH(IunDum1+18)=6),IunDum1+18,\"\"),IF(AND(YEAR(IunDum1+25)=AnulCalendaristic,MONTH(IunDum1+25)=6),IunDum1+25,\"\"))","v":"2019-06-20"},{"$f":"IF(DAY(IunDum1)=1,IF(AND(YEAR(IunDum1+19)=AnulCalendaristic,MONTH(IunDum1+19)=6),IunDum1+19,\"\"),IF(AND(YEAR(IunDum1+26)=AnulCalendaristic,MONTH(IunDum1+26)=6),IunDum1+26,\"\"))","v":"2019-06-21"},{"$f":"IF(DAY(IunDum1)=1,IF(AND(YEAR(IunDum1+20)=AnulCalendaristic,MONTH(IunDum1+20)=6),IunDum1+20,\"\"),IF(AND(YEAR(IunDum1+27)=AnulCalendaristic,MONTH(IunDum1+27)=6),IunDum1+27,\"\"))","v":"2019-06-22"},{"$f":"IF(DAY(IunDum1)=1,IF(AND(YEAR(IunDum1+21)=AnulCalendaristic,MONTH(IunDum1+21)=6),IunDum1+21,\"\"),IF(AND(YEAR(IunDum1+28)=AnulCalendaristic,MONTH(IunDum1+28)=6),IunDum1+28,\"\"))","v":"2019-06-23"},null,null,{"$f":"IF(DAY(IulDum1)=1,IF(AND(YEAR(IulDum1+15)=AnulCalendaristic,MONTH(IulDum1+15)=7),IulDum1+15,\"\"),IF(AND(YEAR(IulDum1+22)=AnulCalendaristic,MONTH(IulDum1+22)=7),IulDum1+22,\"\"))","v":"2019-07-22"},{"$f":"IF(DAY(IulDum1)=1,IF(AND(YEAR(IulDum1+16)=AnulCalendaristic,MONTH(IulDum1+16)=7),IulDum1+16,\"\"),IF(AND(YEAR(IulDum1+23)=AnulCalendaristic,MONTH(IulDum1+23)=7),IulDum1+23,\"\"))","v":"2019-07-23"},{"$f":"IF(DAY(IulDum1)=1,IF(AND(YEAR(IulDum1+17)=AnulCalendaristic,MONTH(IulDum1+17)=7),IulDum1+17,\"\"),IF(AND(YEAR(IulDum1+24)=AnulCalendaristic,MONTH(IulDum1+24)=7),IulDum1+24,\"\"))","v":"2019-07-24"},{"$f":"IF(DAY(IulDum1)=1,IF(AND(YEAR(IulDum1+18)=AnulCalendaristic,MONTH(IulDum1+18)=7),IulDum1+18,\"\"),IF(AND(YEAR(IulDum1+25)=AnulCalendaristic,MONTH(IulDum1+25)=7),IulDum1+25,\"\"))","v":"2019-07-25"},{"$f":"IF(DAY(IulDum1)=1,IF(AND(YEAR(IulDum1+19)=AnulCalendaristic,MONTH(IulDum1+19)=7),IulDum1+19,\"\"),IF(AND(YEAR(IulDum1+26)=AnulCalendaristic,MONTH(IulDum1+26)=7),IulDum1+26,\"\"))","v":"2019-07-26"},{"$f":"IF(DAY(IulDum1)=1,IF(AND(YEAR(IulDum1+20)=AnulCalendaristic,MONTH(IulDum1+20)=7),IulDum1+20,\"\"),IF(AND(YEAR(IulDum1+27)=AnulCalendaristic,MONTH(IulDum1+27)=7),IulDum1+27,\"\"))","v":"2019-07-27"},{"$f":"IF(DAY(IulDum1)=1,IF(AND(YEAR(IulDum1+21)=AnulCalendaristic,MONTH(IulDum1+21)=7),IulDum1+21,\"\"),IF(AND(YEAR(IulDum1+28)=AnulCalendaristic,MONTH(IulDum1+28)=7),IulDum1+28,\"\"))","v":"2019-07-28"},null,null,{"$f":"IF(DAY(AugDum1)=1,IF(AND(YEAR(AugDum1+15)=AnulCalendaristic,MONTH(AugDum1+15)=8),AugDum1+15,\"\"),IF(AND(YEAR(AugDum1+22)=AnulCalendaristic,MONTH(AugDum1+22)=8),AugDum1+22,\"\"))","v":"2019-08-19"},{"$f":"IF(DAY(AugDum1)=1,IF(AND(YEAR(AugDum1+16)=AnulCalendaristic,MONTH(AugDum1+16)=8),AugDum1+16,\"\"),IF(AND(YEAR(AugDum1+23)=AnulCalendaristic,MONTH(AugDum1+23)=8),AugDum1+23,\"\"))","v":"2019-08-20"},{"$f":"IF(DAY(AugDum1)=1,IF(AND(YEAR(AugDum1+17)=AnulCalendaristic,MONTH(AugDum1+17)=8),AugDum1+17,\"\"),IF(AND(YEAR(AugDum1+24)=AnulCalendaristic,MONTH(AugDum1+24)=8),AugDum1+24,\"\"))","v":"2019-08-21"},{"$f":"IF(DAY(AugDum1)=1,IF(AND(YEAR(AugDum1+18)=AnulCalendaristic,MONTH(AugDum1+18)=8),AugDum1+18,\"\"),IF(AND(YEAR(AugDum1+25)=AnulCalendaristic,MONTH(AugDum1+25)=8),AugDum1+25,\"\"))","v":"2019-08-22"},{"$f":"IF(DAY(AugDum1)=1,IF(AND(YEAR(AugDum1+19)=AnulCalendaristic,MONTH(AugDum1+19)=8),AugDum1+19,\"\"),IF(AND(YEAR(AugDum1+26)=AnulCalendaristic,MONTH(AugDum1+26)=8),AugDum1+26,\"\"))","v":"2019-08-23"},{"$f":"IF(DAY(AugDum1)=1,IF(AND(YEAR(AugDum1+20)=AnulCalendaristic,MONTH(AugDum1+20)=8),AugDum1+20,\"\"),IF(AND(YEAR(AugDum1+27)=AnulCalendaristic,MONTH(AugDum1+27)=8),AugDum1+27,\"\"))","v":"2019-08-24"},{"$f":"IF(DAY(AugDum1)=1,IF(AND(YEAR(AugDum1+21)=AnulCalendaristic,MONTH(AugDum1+21)=8),AugDum1+21,\"\"),IF(AND(YEAR(AugDum1+28)=AnulCalendaristic,MONTH(AugDum1+28)=8),AugDum1+28,\"\"))","v":"2019-08-25"}]
[null,null,{"$f":"IF(DAY(MaiDum1)=1,IF(AND(YEAR(MaiDum1+22)=AnulCalendaristic,MONTH(MaiDum1+22)=5),MaiDum1+22,\"\"),IF(AND(YEAR(MaiDum1+29)=AnulCalendaristic,MONTH(MaiDum1+29)=5),MaiDum1+29,\"\"))","v":"2019-05-27"},{"$f":"IF(DAY(MaiDum1)=1,IF(AND(YEAR(MaiDum1+23)=AnulCalendaristic,MONTH(MaiDum1+23)=5),MaiDum1+23,\"\"),IF(AND(YEAR(MaiDum1+30)=AnulCalendaristic,MONTH(MaiDum1+30)=5),MaiDum1+30,\"\"))","v":"2019-05-28"},{"$f":"IF(DAY(MaiDum1)=1,IF(AND(YEAR(MaiDum1+24)=AnulCalendaristic,MONTH(MaiDum1+24)=5),MaiDum1+24,\"\"),IF(AND(YEAR(MaiDum1+31)=AnulCalendaristic,MONTH(MaiDum1+31)=5),MaiDum1+31,\"\"))","v":"2019-05-29"},{"$f":"IF(DAY(MaiDum1)=1,IF(AND(YEAR(MaiDum1+25)=AnulCalendaristic,MONTH(MaiDum1+25)=5),MaiDum1+25,\"\"),IF(AND(YEAR(MaiDum1+32)=AnulCalendaristic,MONTH(MaiDum1+32)=5),MaiDum1+32,\"\"))","v":"2019-05-30"},{"$f":"IF(DAY(MaiDum1)=1,IF(AND(YEAR(MaiDum1+26)=AnulCalendaristic,MONTH(MaiDum1+26)=5),MaiDum1+26,\"\"),IF(AND(YEAR(MaiDum1+33)=AnulCalendaristic,MONTH(MaiDum1+33)=5),MaiDum1+33,\"\"))","v":"2019-05-31"},{"$f":"IF(DAY(MaiDum1)=1,IF(AND(YEAR(MaiDum1+27)=AnulCalendaristic,MONTH(MaiDum1+27)=5),MaiDum1+27,\"\"),IF(AND(YEAR(MaiDum1+34)=AnulCalendaristic,MONTH(MaiDum1+34)=5),MaiDum1+34,\"\"))","v":""},{"$f":"IF(DAY(MaiDum1)=1,IF(AND(YEAR(MaiDum1+28)=AnulCalendaristic,MONTH(MaiDum1+28)=5),MaiDum1+28,\"\"),IF(AND(YEAR(MaiDum1+35)=AnulCalendaristic,MONTH(MaiDum1+35)=5),MaiDum1+35,\"\"))","v":""},null,null,{"$f":"IF(DAY(IunDum1)=1,IF(AND(YEAR(IunDum1+22)=AnulCalendaristic,MONTH(IunDum1+22)=6),IunDum1+22,\"\"),IF(AND(YEAR(IunDum1+29)=AnulCalendaristic,MONTH(IunDum1+29)=6),IunDum1+29,\"\"))","v":"2019-06-24"},{"$f":"IF(DAY(IunDum1)=1,IF(AND(YEAR(IunDum1+23)=AnulCalendaristic,MONTH(IunDum1+23)=6),IunDum1+23,\"\"),IF(AND(YEAR(IunDum1+30)=AnulCalendaristic,MONTH(IunDum1+30)=6),IunDum1+30,\"\"))","v":"2019-06-25"},{"$f":"IF(DAY(IunDum1)=1,IF(AND(YEAR(IunDum1+24)=AnulCalendaristic,MONTH(IunDum1+24)=6),IunDum1+24,\"\"),IF(AND(YEAR(IunDum1+31)=AnulCalendaristic,MONTH(IunDum1+31)=6),IunDum1+31,\"\"))","v":"2019-06-26"},{"$f":"IF(DAY(IunDum1)=1,IF(AND(YEAR(IunDum1+25)=AnulCalendaristic,MONTH(IunDum1+25)=6),IunDum1+25,\"\"),IF(AND(YEAR(IunDum1+32)=AnulCalendaristic,MONTH(IunDum1+32)=6),IunDum1+32,\"\"))","v":"2019-06-27"},{"$f":"IF(DAY(IunDum1)=1,IF(AND(YEAR(IunDum1+26)=AnulCalendaristic,MONTH(IunDum1+26)=6),IunDum1+26,\"\"),IF(AND(YEAR(IunDum1+33)=AnulCalendaristic,MONTH(IunDum1+33)=6),IunDum1+33,\"\"))","v":"2019-06-28"},{"$f":"IF(DAY(IunDum1)=1,IF(AND(YEAR(IunDum1+27)=AnulCalendaristic,MONTH(IunDum1+27)=6),IunDum1+27,\"\"),IF(AND(YEAR(IunDum1+34)=AnulCalendaristic,MONTH(IunDum1+34)=6),IunDum1+34,\"\"))","v":"2019-06-29"},{"$f":"IF(DAY(IunDum1)=1,IF(AND(YEAR(IunDum1+28)=AnulCalendaristic,MONTH(IunDum1+28)=6),IunDum1+28,\"\"),IF(AND(YEAR(IunDum1+35)=AnulCalendaristic,MONTH(IunDum1+35)=6),IunDum1+35,\"\"))","v":"2019-06-30"},null,null,{"$f":"IF(DAY(IulDum1)=1,IF(AND(YEAR(IulDum1+22)=AnulCalendaristic,MONTH(IulDum1+22)=7),IulDum1+22,\"\"),IF(AND(YEAR(IulDum1+29)=AnulCalendaristic,MONTH(IulDum1+29)=7),IulDum1+29,\"\"))","v":"2019-07-29"},{"$f":"IF(DAY(IulDum1)=1,IF(AND(YEAR(IulDum1+23)=AnulCalendaristic,MONTH(IulDum1+23)=7),IulDum1+23,\"\"),IF(AND(YEAR(IulDum1+30)=AnulCalendaristic,MONTH(IulDum1+30)=7),IulDum1+30,\"\"))","v":"2019-07-30"},{"$f":"IF(DAY(IulDum1)=1,IF(AND(YEAR(IulDum1+24)=AnulCalendaristic,MONTH(IulDum1+24)=7),IulDum1+24,\"\"),IF(AND(YEAR(IulDum1+31)=AnulCalendaristic,MONTH(IulDum1+31)=7),IulDum1+31,\"\"))","v":"2019-07-31"},{"$f":"IF(DAY(IulDum1)=1,IF(AND(YEAR(IulDum1+25)=AnulCalendaristic,MONTH(IulDum1+25)=7),IulDum1+25,\"\"),IF(AND(YEAR(IulDum1+32)=AnulCalendaristic,MONTH(IulDum1+32)=7),IulDum1+32,\"\"))","v":""},{"$f":"IF(DAY(IulDum1)=1,IF(AND(YEAR(IulDum1+26)=AnulCalendaristic,MONTH(IulDum1+26)=7),IulDum1+26,\"\"),IF(AND(YEAR(IulDum1+33)=AnulCalendaristic,MONTH(IulDum1+33)=7),IulDum1+33,\"\"))","v":""},{"$f":"IF(DAY(IulDum1)=1,IF(AND(YEAR(IulDum1+27)=AnulCalendaristic,MONTH(IulDum1+27)=7),IulDum1+27,\"\"),IF(AND(YEAR(IulDum1+34)=AnulCalendaristic,MONTH(IulDum1+34)=7),IulDum1+34,\"\"))","v":""},{"$f":"IF(DAY(IulDum1)=1,IF(AND(YEAR(IulDum1+28)=AnulCalendaristic,MONTH(IulDum1+28)=7),IulDum1+28,\"\"),IF(AND(YEAR(IulDum1+35)=AnulCalendaristic,MONTH(IulDum1+35)=7),IulDum1+35,\"\"))","v":""},null,null,{"$f":"IF(DAY(AugDum1)=1,IF(AND(YEAR(AugDum1+22)=AnulCalendaristic,MONTH(AugDum1+22)=8),AugDum1+22,\"\"),IF(AND(YEAR(AugDum1+29)=AnulCalendaristic,MONTH(AugDum1+29)=8),AugDum1+29,\"\"))","v":"2019-08-26"},{"$f":"IF(DAY(AugDum1)=1,IF(AND(YEAR(AugDum1+23)=AnulCalendaristic,MONTH(AugDum1+23)=8),AugDum1+23,\"\"),IF(AND(YEAR(AugDum1+30)=AnulCalendaristic,MONTH(AugDum1+30)=8),AugDum1+30,\"\"))","v":"2019-08-27"},{"$f":"IF(DAY(AugDum1)=1,IF(AND(YEAR(AugDum1+24)=AnulCalendaristic,MONTH(AugDum1+24)=8),AugDum1+24,\"\"),IF(AND(YEAR(AugDum1+31)=AnulCalendaristic,MONTH(AugDum1+31)=8),AugDum1+31,\"\"))","v":"2019-08-28"},{"$f":"IF(DAY(AugDum1)=1,IF(AND(YEAR(AugDum1+25)=AnulCalendaristic,MONTH(AugDum1+25)=8),AugDum1+25,\"\"),IF(AND(YEAR(AugDum1+32)=AnulCalendaristic,MONTH(AugDum1+32)=8),AugDum1+32,\"\"))","v":"2019-08-29"},{"$f":"IF(DAY(AugDum1)=1,IF(AND(YEAR(AugDum1+26)=AnulCalendaristic,MONTH(AugDum1+26)=8),AugDum1+26,\"\"),IF(AND(YEAR(AugDum1+33)=AnulCalendaristic,MONTH(AugDum1+33)=8),AugDum1+33,\"\"))","v":"2019-08-30"},{"$f":"IF(DAY(AugDum1)=1,IF(AND(YEAR(AugDum1+27)=AnulCalendaristic,MONTH(AugDum1+27)=8),AugDum1+27,\"\"),IF(AND(YEAR(AugDum1+34)=AnulCalendaristic,MONTH(AugDum1+34)=8),AugDum1+34,\"\"))","v":"2019-08-31"},{"$f":"IF(DAY(AugDum1)=1,IF(AND(YEAR(AugDum1+28)=AnulCalendaristic,MONTH(AugDum1+28)=8),AugDum1+28,\"\"),IF(AND(YEAR(AugDum1+35)=AnulCalendaristic,MONTH(AugDum1+35)=8),AugDum1+35,\"\"))","v":""}]
[null,null,{"$f":"IF(DAY(MaiDum1)=1,IF(AND(YEAR(MaiDum1+29)=AnulCalendaristic,MONTH(MaiDum1+29)=5),MaiDum1+29,\"\"),IF(AND(YEAR(MaiDum1+36)=AnulCalendaristic,MONTH(MaiDum1+36)=5),MaiDum1+36,\"\"))","v":""},{"$f":"IF(DAY(MaiDum1)=1,IF(AND(YEAR(MaiDum1+30)=AnulCalendaristic,MONTH(MaiDum1+30)=5),MaiDum1+30,\"\"),IF(AND(YEAR(MaiDum1+37)=AnulCalendaristic,MONTH(MaiDum1+37)=5),MaiDum1+37,\"\"))","v":""},{"$f":"IF(DAY(MaiDum1)=1,IF(AND(YEAR(MaiDum1+31)=AnulCalendaristic,MONTH(MaiDum1+31)=5),MaiDum1+31,\"\"),IF(AND(YEAR(MaiDum1+38)=AnulCalendaristic,MONTH(MaiDum1+38)=5),MaiDum1+38,\"\"))","v":""},{"$f":"IF(DAY(MaiDum1)=1,IF(AND(YEAR(MaiDum1+32)=AnulCalendaristic,MONTH(MaiDum1+32)=5),MaiDum1+32,\"\"),IF(AND(YEAR(MaiDum1+39)=AnulCalendaristic,MONTH(MaiDum1+39)=5),MaiDum1+39,\"\"))","v":""},{"$f":"IF(DAY(MaiDum1)=1,IF(AND(YEAR(MaiDum1+33)=AnulCalendaristic,MONTH(MaiDum1+33)=5),MaiDum1+33,\"\"),IF(AND(YEAR(MaiDum1+40)=AnulCalendaristic,MONTH(MaiDum1+40)=5),MaiDum1+40,\"\"))","v":""},{"$f":"IF(DAY(MaiDum1)=1,IF(AND(YEAR(MaiDum1+34)=AnulCalendaristic,MONTH(MaiDum1+34)=5),MaiDum1+34,\"\"),IF(AND(YEAR(MaiDum1+41)=AnulCalendaristic,MONTH(MaiDum1+41)=5),MaiDum1+41,\"\"))","v":""},{"$f":"IF(DAY(MaiDum1)=1,IF(AND(YEAR(MaiDum1+35)=AnulCalendaristic,MONTH(MaiDum1+35)=5),MaiDum1+35,\"\"),IF(AND(YEAR(MaiDum1+42)=AnulCalendaristic,MONTH(MaiDum1+42)=5),MaiDum1+42,\"\"))","v":""},null,null,{"$f":"IF(DAY(IunDum1)=1,IF(AND(YEAR(IunDum1+29)=AnulCalendaristic,MONTH(IunDum1+29)=6),IunDum1+29,\"\"),IF(AND(YEAR(IunDum1+36)=AnulCalendaristic,MONTH(IunDum1+36)=6),IunDum1+36,\"\"))","v":""},{"$f":"IF(DAY(IunDum1)=1,IF(AND(YEAR(IunDum1+30)=AnulCalendaristic,MONTH(IunDum1+30)=6),IunDum1+30,\"\"),IF(AND(YEAR(IunDum1+37)=AnulCalendaristic,MONTH(IunDum1+37)=6),IunDum1+37,\"\"))","v":""},{"$f":"IF(DAY(IunDum1)=1,IF(AND(YEAR(IunDum1+31)=AnulCalendaristic,MONTH(IunDum1+31)=6),IunDum1+31,\"\"),IF(AND(YEAR(IunDum1+38)=AnulCalendaristic,MONTH(IunDum1+38)=6),IunDum1+38,\"\"))","v":""},{"$f":"IF(DAY(IunDum1)=1,IF(AND(YEAR(IunDum1+32)=AnulCalendaristic,MONTH(IunDum1+32)=6),IunDum1+32,\"\"),IF(AND(YEAR(IunDum1+39)=AnulCalendaristic,MONTH(IunDum1+39)=6),IunDum1+39,\"\"))","v":""},{"$f":"IF(DAY(IunDum1)=1,IF(AND(YEAR(IunDum1+33)=AnulCalendaristic,MONTH(IunDum1+33)=6),IunDum1+33,\"\"),IF(AND(YEAR(IunDum1+40)=AnulCalendaristic,MONTH(IunDum1+40)=6),IunDum1+40,\"\"))","v":""},{"$f":"IF(DAY(IunDum1)=1,IF(AND(YEAR(IunDum1+34)=AnulCalendaristic,MONTH(IunDum1+34)=6),IunDum1+34,\"\"),IF(AND(YEAR(IunDum1+41)=AnulCalendaristic,MONTH(IunDum1+41)=6),IunDum1+41,\"\"))","v":""},{"$f":"IF(DAY(IunDum1)=1,IF(AND(YEAR(IunDum1+35)=AnulCalendaristic,MONTH(IunDum1+35)=6),IunDum1+35,\"\"),IF(AND(YEAR(IunDum1+42)=AnulCalendaristic,MONTH(IunDum1+42)=6),IunDum1+42,\"\"))","v":""},null,null,{"$f":"IF(DAY(IulDum1)=1,IF(AND(YEAR(IulDum1+29)=AnulCalendaristic,MONTH(IulDum1+29)=7),IulDum1+29,\"\"),IF(AND(YEAR(IulDum1+36)=AnulCalendaristic,MONTH(IulDum1+36)=7),IulDum1+36,\"\"))","v":""},{"$f":"IF(DAY(IulDum1)=1,IF(AND(YEAR(IulDum1+30)=AnulCalendaristic,MONTH(IulDum1+30)=7),IulDum1+30,\"\"),IF(AND(YEAR(IulDum1+37)=AnulCalendaristic,MONTH(IulDum1+37)=7),IulDum1+37,\"\"))","v":""},{"$f":"IF(DAY(IulDum1)=1,IF(AND(YEAR(IulDum1+31)=AnulCalendaristic,MONTH(IulDum1+31)=7),IulDum1+31,\"\"),IF(AND(YEAR(IulDum1+38)=AnulCalendaristic,MONTH(IulDum1+38)=7),IulDum1+38,\"\"))","v":""},{"$f":"IF(DAY(IulDum1)=1,IF(AND(YEAR(IulDum1+32)=AnulCalendaristic,MONTH(IulDum1+32)=7),IulDum1+32,\"\"),IF(AND(YEAR(IulDum1+39)=AnulCalendaristic,MONTH(IulDum1+39)=7),IulDum1+39,\"\"))","v":""},{"$f":"IF(DAY(IulDum1)=1,IF(AND(YEAR(IulDum1+33)=AnulCalendaristic,MONTH(IulDum1+33)=7),IulDum1+33,\"\"),IF(AND(YEAR(IulDum1+40)=AnulCalendaristic,MONTH(IulDum1+40)=7),IulDum1+40,\"\"))","v":""},{"$f":"IF(DAY(IulDum1)=1,IF(AND(YEAR(IulDum1+34)=AnulCalendaristic,MONTH(IulDum1+34)=7),IulDum1+34,\"\"),IF(AND(YEAR(IulDum1+41)=AnulCalendaristic,MONTH(IulDum1+41)=7),IulDum1+41,\"\"))","v":""},{"$f":"IF(DAY(IulDum1)=1,IF(AND(YEAR(IulDum1+35)=AnulCalendaristic,MONTH(IulDum1+35)=7),IulDum1+35,\"\"),IF(AND(YEAR(IulDum1+42)=AnulCalendaristic,MONTH(IulDum1+42)=7),IulDum1+42,\"\"))","v":""},null,null,{"$f":"IF(DAY(AugDum1)=1,IF(AND(YEAR(AugDum1+29)=AnulCalendaristic,MONTH(AugDum1+29)=8),AugDum1+29,\"\"),IF(AND(YEAR(AugDum1+36)=AnulCalendaristic,MONTH(AugDum1+36)=8),AugDum1+36,\"\"))","v":""},{"$f":"IF(DAY(AugDum1)=1,IF(AND(YEAR(AugDum1+30)=AnulCalendaristic,MONTH(AugDum1+30)=8),AugDum1+30,\"\"),IF(AND(YEAR(AugDum1+37)=AnulCalendaristic,MONTH(AugDum1+37)=8),AugDum1+37,\"\"))","v":""},{"$f":"IF(DAY(AugDum1)=1,IF(AND(YEAR(AugDum1+31)=AnulCalendaristic,MONTH(AugDum1+31)=8),AugDum1+31,\"\"),IF(AND(YEAR(AugDum1+38)=AnulCalendaristic,MONTH(AugDum1+38)=8),AugDum1+38,\"\"))","v":""},{"$f":"IF(DAY(AugDum1)=1,IF(AND(YEAR(AugDum1+32)=AnulCalendaristic,MONTH(AugDum1+32)=8),AugDum1+32,\"\"),IF(AND(YEAR(AugDum1+39)=AnulCalendaristic,MONTH(AugDum1+39)=8),AugDum1+39,\"\"))","v":""},{"$f":"IF(DAY(AugDum1)=1,IF(AND(YEAR(AugDum1+33)=AnulCalendaristic,MONTH(AugDum1+33)=8),AugDum1+33,\"\"),IF(AND(YEAR(AugDum1+40)=AnulCalendaristic,MONTH(AugDum1+40)=8),AugDum1+40,\"\"))","v":""},{"$f":"IF(DAY(AugDum1)=1,IF(AND(YEAR(AugDum1+34)=AnulCalendaristic,MONTH(AugDum1+34)=8),AugDum1+34,\"\"),IF(AND(YEAR(AugDum1+41)=AnulCalendaristic,MONTH(AugDum1+41)=8),AugDum1+41,\"\"))","v":""},{"$f":"IF(DAY(AugDum1)=1,IF(AND(YEAR(AugDum1+35)=AnulCalendaristic,MONTH(AugDum1+35)=8),AugDum1+35,\"\"),IF(AND(YEAR(AugDum1+42)=AnulCalendaristic,MONTH(AugDum1+42)=8),AugDum1+42,\"\"))","v":""}]
[]
[null,null,{"$f":"DATE(AnulCalendaristic,9,1)","v":"2019-09-01"},{"$nulls":8},{"$f":"DATE(AnulCalendaristic,10,1)","v":"2019-10-01"},{"$nulls":8},{"$f":"DATE(AnulCalendaristic,11,1)","v":"2019-11-01"},{"$nulls":8},{"$f":"DATE(AnulCalendaristic,12,1)","v":"2019-12-01"}]
[null,null,"L","M","M","J","V","S","D",null,null,"L","M","M","J","V","S","D",null,null,"L","M","M","J","V","S","D",null,null,"L","M","M","J","V","S","D"]
[null,null,{"$f":"IF(DAY(SepDum1)=1,\"\",IF(AND(YEAR(SepDum1+1)=AnulCalendaristic,MONTH(SepDum1+1)=9),SepDum1+1,\"\"))","v":""},{"$f":"IF(DAY(SepDum1)=1,\"\",IF(AND(YEAR(SepDum1+2)=AnulCalendaristic,MONTH(SepDum1+2)=9),SepDum1+2,\"\"))","v":""},{"$f":"IF(DAY(SepDum1)=1,\"\",IF(AND(YEAR(SepDum1+3)=AnulCalendaristic,MONTH(SepDum1+3)=9),SepDum1+3,\"\"))","v":""},{"$f":"IF(DAY(SepDum1)=1,\"\",IF(AND(YEAR(SepDum1+4)=AnulCalendaristic,MONTH(SepDum1+4)=9),SepDum1+4,\"\"))","v":""},{"$f":"IF(DAY(SepDum1)=1,\"\",IF(AND(YEAR(SepDum1+5)=AnulCalendaristic,MONTH(SepDum1+5)=9),SepDum1+5,\"\"))","v":""},{"$f":"IF(DAY(SepDum1)=1,\"\",IF(AND(YEAR(SepDum1+6)=AnulCalendaristic,MONTH(SepDum1+6)=9),SepDum1+6,\"\"))","v":""},{"$f":"IF(DAY(SepDum1)=1,IF(AND(YEAR(SepDum1)=AnulCalendaristic,MONTH(SepDum1)=9),SepDum1,\"\"),IF(AND(YEAR(SepDum1+7)=AnulCalendaristic,MONTH(SepDum1+7)=9),SepDum1+7,\"\"))","v":"2019-09-01"},null,null,{"$f":"IF(DAY(OctDum1)=1,\"\",IF(AND(YEAR(OctDum1+1)=AnulCalendaristic,MONTH(OctDum1+1)=10),OctDum1+1,\"\"))","v":""},{"$f":"IF(DAY(OctDum1)=1,\"\",IF(AND(YEAR(OctDum1+2)=AnulCalendaristic,MONTH(OctDum1+2)=10),OctDum1+2,\"\"))","v":"2019-10-01"},{"$f":"IF(DAY(OctDum1)=1,\"\",IF(AND(YEAR(OctDum1+3)=AnulCalendaristic,MONTH(OctDum1+3)=10),OctDum1+3,\"\"))","v":"2019-10-02"},{"$f":"IF(DAY(OctDum1)=1,\"\",IF(AND(YEAR(OctDum1+4)=AnulCalendaristic,MONTH(OctDum1+4)=10),OctDum1+4,\"\"))","v":"2019-10-03"},{"$f":"IF(DAY(OctDum1)=1,\"\",IF(AND(YEAR(OctDum1+5)=AnulCalendaristic,MONTH(OctDum1+5)=10),OctDum1+5,\"\"))","v":"2019-10-04"},{"$f":"IF(DAY(OctDum1)=1,\"\",IF(AND(YEAR(OctDum1+6)=AnulCalendaristic,MONTH(OctDum1+6)=10),OctDum1+6,\"\"))","v":"2019-10-05"},{"$f":"IF(DAY(OctDum1)=1,IF(AND(YEAR(OctDum1)=AnulCalendaristic,MONTH(OctDum1)=10),OctDum1,\"\"),IF(AND(YEAR(OctDum1+7)=AnulCalendaristic,MONTH(OctDum1+7)=10),OctDum1+7,\"\"))","v":"2019-10-06"},null,null,{"$f":"IF(DAY(NovDum1)=1,\"\",IF(AND(YEAR(NovDum1+1)=AnulCalendaristic,MONTH(NovDum1+1)=11),NovDum1+1,\"\"))","v":""},{"$f":"IF(DAY(NovDum1)=1,\"\",IF(AND(YEAR(NovDum1+2)=AnulCalendaristic,MONTH(NovDum1+2)=11),NovDum1+2,\"\"))","v":""},{"$f":"IF(DAY(NovDum1)=1,\"\",IF(AND(YEAR(NovDum1+3)=AnulCalendaristic,MONTH(NovDum1+3)=11),NovDum1+3,\"\"))","v":""},{"$f":"IF(DAY(NovDum1)=1,\"\",IF(AND(YEAR(NovDum1+4)=AnulCalendaristic,MONTH(NovDum1+4)=11),NovDum1+4,\"\"))","v":""},{"$f":"IF(DAY(NovDum1)=1,\"\",IF(AND(YEAR(NovDum1+5)=AnulCalendaristic,MONTH(NovDum1+5)=11),NovDum1+5,\"\"))","v":"2019-11-01"},{"$f":"IF(DAY(NovDum1)=1,\"\",IF(AND(YEAR(NovDum1+6)=AnulCalendaristic,MONTH(NovDum1+6)=11),NovDum1+6,\"\"))","v":"2019-11-02"},{"$f":"IF(DAY(NovDum1)=1,IF(AND(YEAR(NovDum1)=AnulCalendaristic,MONTH(NovDum1)=11),NovDum1,\"\"),IF(AND(YEAR(NovDum1+7)=AnulCalendaristic,MONTH(NovDum1+7)=11),NovDum1+7,\"\"))","v":"2019-11-03"},null,null,{"$f":"IF(DAY(DecDum1)=1,\"\",IF(AND(YEAR(DecDum1+1)=AnulCalendaristic,MONTH(DecDum1+1)=12),DecDum1+1,\"\"))","v":""},{"$f":"IF(DAY(DecDum1)=1,\"\",IF(AND(YEAR(DecDum1+2)=AnulCalendaristic,MONTH(DecDum1+2)=12),DecDum1+2,\"\"))","v":""},{"$f":"IF(DAY(DecDum1)=1,\"\",IF(AND(YEAR(DecDum1+3)=AnulCalendaristic,MONTH(DecDum1+3)=12),DecDum1+3,\"\"))","v":""},{"$f":"IF(DAY(DecDum1)=1,\"\",IF(AND(YEAR(DecDum1+4)=AnulCalendaristic,MONTH(DecDum1+4)=12),DecDum1+4,\"\"))","v":""},{"$f":"IF(DAY(DecDum1)=1,\"\",IF(AND(YEAR(DecDum1+5)=AnulCalendaristic,MONTH(DecDum1+5)=12),DecDum1+5,\"\"))","v":""},{"$f":"IF(DAY(DecDum1)=1,\"\",IF(AND(YEAR(DecDum1+6)=AnulCalendaristic,MONTH(DecDum1+6)=12),DecDum1+6,\"\"))","v":""},{"$f":"IF(DAY(DecDum1)=1,IF(AND(YEAR(DecDum1)=AnulCalendaristic,MONTH(DecDum1)=12),DecDum1,\"\"),IF(AND(YEAR(DecDum1+7)=AnulCalendaristic,MONTH(DecDum1+7)=12),DecDum1+7,\"\"))","v":"2019-12-01"}]
[null,null,{"$f":"IF(DAY(SepDum1)=1,IF(AND(YEAR(SepDum1+1)=AnulCalendaristic,MONTH(SepDum1+1)=9),SepDum1+1,\"\"),IF(AND(YEAR(SepDum1+8)=AnulCalendaristic,MONTH(SepDum1+8)=9),SepDum1+8,\"\"))","v":"2019-09-02"},{"$f":"IF(DAY(SepDum1)=1,IF(AND(YEAR(SepDum1+2)=AnulCalendaristic,MONTH(SepDum1+2)=9),SepDum1+2,\"\"),IF(AND(YEAR(SepDum1+9)=AnulCalendaristic,MONTH(SepDum1+9)=9),SepDum1+9,\"\"))","v":"2019-09-03"},{"$f":"IF(DAY(SepDum1)=1,IF(AND(YEAR(SepDum1+3)=AnulCalendaristic,MONTH(SepDum1+3)=9),SepDum1+3,\"\"),IF(AND(YEAR(SepDum1+10)=AnulCalendaristic,MONTH(SepDum1+10)=9),SepDum1+10,\"\"))","v":"2019-09-04"},{"$f":"IF(DAY(SepDum1)=1,IF(AND(YEAR(SepDum1+4)=AnulCalendaristic,MONTH(SepDum1+4)=9),SepDum1+4,\"\"),IF(AND(YEAR(SepDum1+11)=AnulCalendaristic,MONTH(SepDum1+11)=9),SepDum1+11,\"\"))","v":"2019-09-05"},{"$f":"IF(DAY(SepDum1)=1,IF(AND(YEAR(SepDum1+5)=AnulCalendaristic,MONTH(SepDum1+5)=9),SepDum1+5,\"\"),IF(AND(YEAR(SepDum1+12)=AnulCalendaristic,MONTH(SepDum1+12)=9),SepDum1+12,\"\"))","v":"2019-09-06"},{"$f":"IF(DAY(SepDum1)=1,IF(AND(YEAR(SepDum1+6)=AnulCalendaristic,MONTH(SepDum1+6)=9),SepDum1+6,\"\"),IF(AND(YEAR(SepDum1+13)=AnulCalendaristic,MONTH(SepDum1+13)=9),SepDum1+13,\"\"))","v":"2019-09-07"},{"$f":"IF(DAY(SepDum1)=1,IF(AND(YEAR(SepDum1+7)=AnulCalendaristic,MONTH(SepDum1+7)=9),SepDum1+7,\"\"),IF(AND(YEAR(SepDum1+14)=AnulCalendaristic,MONTH(SepDum1+14)=9),SepDum1+14,\"\"))","v":"2019-09-08"},null,null,{"$f":"IF(DAY(OctDum1)=1,IF(AND(YEAR(OctDum1+1)=AnulCalendaristic,MONTH(OctDum1+1)=10),OctDum1+1,\"\"),IF(AND(YEAR(OctDum1+8)=AnulCalendaristic,MONTH(OctDum1+8)=10),OctDum1+8,\"\"))","v":"2019-10-07"},{"$f":"IF(DAY(OctDum1)=1,IF(AND(YEAR(OctDum1+2)=AnulCalendaristic,MONTH(OctDum1+2)=10),OctDum1+2,\"\"),IF(AND(YEAR(OctDum1+9)=AnulCalendaristic,MONTH(OctDum1+9)=10),OctDum1+9,\"\"))","v":"2019-10-08"},{"$f":"IF(DAY(OctDum1)=1,IF(AND(YEAR(OctDum1+3)=AnulCalendaristic,MONTH(OctDum1+3)=10),OctDum1+3,\"\"),IF(AND(YEAR(OctDum1+10)=AnulCalendaristic,MONTH(OctDum1+10)=10),OctDum1+10,\"\"))","v":"2019-10-09"},{"$f":"IF(DAY(OctDum1)=1,IF(AND(YEAR(OctDum1+4)=AnulCalendaristic,MONTH(OctDum1+4)=10),OctDum1+4,\"\"),IF(AND(YEAR(OctDum1+11)=AnulCalendaristic,MONTH(OctDum1+11)=10),OctDum1+11,\"\"))","v":"2019-10-10"},{"$f":"IF(DAY(OctDum1)=1,IF(AND(YEAR(OctDum1+5)=AnulCalendaristic,MONTH(OctDum1+5)=10),OctDum1+5,\"\"),IF(AND(YEAR(OctDum1+12)=AnulCalendaristic,MONTH(OctDum1+12)=10),OctDum1+12,\"\"))","v":"2019-10-11"},{"$f":"IF(DAY(OctDum1)=1,IF(AND(YEAR(OctDum1+6)=AnulCalendaristic,MONTH(OctDum1+6)=10),OctDum1+6,\"\"),IF(AND(YEAR(OctDum1+13)=AnulCalendaristic,MONTH(OctDum1+13)=10),OctDum1+13,\"\"))","v":"2019-10-12"},{"$f":"IF(DAY(OctDum1)=1,IF(AND(YEAR(OctDum1+7)=AnulCalendaristic,MONTH(OctDum1+7)=10),OctDum1+7,\"\"),IF(AND(YEAR(OctDum1+14)=AnulCalendaristic,MONTH(OctDum1+14)=10),OctDum1+14,\"\"))","v":"2019-10-13"},null,null,{"$f":"IF(DAY(NovDum1)=1,IF(AND(YEAR(NovDum1+1)=AnulCalendaristic,MONTH(NovDum1+1)=11),NovDum1+1,\"\"),IF(AND(YEAR(NovDum1+8)=AnulCalendaristic,MONTH(NovDum1+8)=11),NovDum1+8,\"\"))","v":"2019-11-04"},{"$f":"IF(DAY(NovDum1)=1,IF(AND(YEAR(NovDum1+2)=AnulCalendaristic,MONTH(NovDum1+2)=11),NovDum1+2,\"\"),IF(AND(YEAR(NovDum1+9)=AnulCalendaristic,MONTH(NovDum1+9)=11),NovDum1+9,\"\"))","v":"2019-11-05"},{"$f":"IF(DAY(NovDum1)=1,IF(AND(YEAR(NovDum1+3)=AnulCalendaristic,MONTH(NovDum1+3)=11),NovDum1+3,\"\"),IF(AND(YEAR(NovDum1+10)=AnulCalendaristic,MONTH(NovDum1+10)=11),NovDum1+10,\"\"))","v":"2019-11-06"},{"$f":"IF(DAY(NovDum1)=1,IF(AND(YEAR(NovDum1+4)=AnulCalendaristic,MONTH(NovDum1+4)=11),NovDum1+4,\"\"),IF(AND(YEAR(NovDum1+11)=AnulCalendaristic,MONTH(NovDum1+11)=11),NovDum1+11,\"\"))","v":"2019-11-07"},{"$f":"IF(DAY(NovDum1)=1,IF(AND(YEAR(NovDum1+5)=AnulCalendaristic,MONTH(NovDum1+5)=11),NovDum1+5,\"\"),IF(AND(YEAR(NovDum1+12)=AnulCalendaristic,MONTH(NovDum1+12)=11),NovDum1+12,\"\"))","v":"2019-11-08"},{"$f":"IF(DAY(NovDum1)=1,IF(AND(YEAR(NovDum1+6)=AnulCalendaristic,MONTH(NovDum1+6)=11),NovDum1+6,\"\"),IF(AND(YEAR(NovDum1+13)=AnulCalendaristic,MONTH(NovDum1+13)=11),NovDum1+13,\"\"))","v":"2019-11-09"},{"$f":"IF(DAY(NovDum1)=1,IF(AND(YEAR(NovDum1+7)=AnulCalendaristic,MONTH(NovDum1+7)=11),NovDum1+7,\"\"),IF(AND(YEAR(NovDum1+14)=AnulCalendaristic,MONTH(NovDum1+14)=11),NovDum1+14,\"\"))","v":"2019-11-10"},null,null,{"$f":"IF(DAY(DecDum1)=1,IF(AND(YEAR(DecDum1+1)=AnulCalendaristic,MONTH(DecDum1+1)=12),DecDum1+1,\"\"),IF(AND(YEAR(DecDum1+8)=AnulCalendaristic,MONTH(DecDum1+8)=12),DecDum1+8,\"\"))","v":"2019-12-02"},{"$f":"IF(DAY(DecDum1)=1,IF(AND(YEAR(DecDum1+2)=AnulCalendaristic,MONTH(DecDum1+2)=12),DecDum1+2,\"\"),IF(AND(YEAR(DecDum1+9)=AnulCalendaristic,MONTH(DecDum1+9)=12),DecDum1+9,\"\"))","v":"2019-12-03"},{"$f":"IF(DAY(DecDum1)=1,IF(AND(YEAR(DecDum1+3)=AnulCalendaristic,MONTH(DecDum1+3)=12),DecDum1+3,\"\"),IF(AND(YEAR(DecDum1+10)=AnulCalendaristic,MONTH(DecDum1+10)=12),DecDum1+10,\"\"))","v":"2019-12-04"},{"$f":"IF(DAY(DecDum1)=1,IF(AND(YEAR(DecDum1+4)=AnulCalendaristic,MONTH(DecDum1+4)=12),DecDum1+4,\"\"),IF(AND(YEAR(DecDum1+11)=AnulCalendaristic,MONTH(DecDum1+11)=12),DecDum1+11,\"\"))","v":"2019-12-05"},{"$f":"IF(DAY(DecDum1)=1,IF(AND(YEAR(DecDum1+5)=AnulCalendaristic,MONTH(DecDum1+5)=12),DecDum1+5,\"\"),IF(AND(YEAR(DecDum1+12)=AnulCalendaristic,MONTH(DecDum1+12)=12),DecDum1+12,\"\"))","v":"2019-12-06"},{"$f":"IF(DAY(DecDum1)=1,IF(AND(YEAR(DecDum1+6)=AnulCalendaristic,MONTH(DecDum1+6)=12),DecDum1+6,\"\"),IF(AND(YEAR(DecDum1+13)=AnulCalendaristic,MONTH(DecDum1+13)=12),DecDum1+13,\"\"))","v":"2019-12-07"},{"$f":"IF(DAY(DecDum1)=1,IF(AND(YEAR(DecDum1+7)=AnulCalendaristic,MONTH(DecDum1+7)=12),DecDum1+7,\"\"),IF(AND(YEAR(DecDum1+14)=AnulCalendaristic,MONTH(DecDum1+14)=12),DecDum1+14,\"\"))","v":"2019-12-08"}]
[null,null,{"$f":"IF(DAY(SepDum1)=1,IF(AND(YEAR(SepDum1+8)=AnulCalendaristic,MONTH(SepDum1+8)=9),SepDum1+8,\"\"),IF(AND(YEAR(SepDum1+15)=AnulCalendaristic,MONTH(SepDum1+15)=9),SepDum1+15,\"\"))","v":"2019-09-09"},{"$f":"IF(DAY(SepDum1)=1,IF(AND(YEAR(SepDum1+9)=AnulCalendaristic,MONTH(SepDum1+9)=9),SepDum1+9,\"\"),IF(AND(YEAR(SepDum1+16)=AnulCalendaristic,MONTH(SepDum1+16)=9),SepDum1+16,\"\"))","v":"2019-09-10"},{"$f":"IF(DAY(SepDum1)=1,IF(AND(YEAR(SepDum1+10)=AnulCalendaristic,MONTH(SepDum1+10)=9),SepDum1+10,\"\"),IF(AND(YEAR(SepDum1+17)=AnulCalendaristic,MONTH(SepDum1+17)=9),SepDum1+17,\"\"))","v":"2019-09-11"},{"$f":"IF(DAY(SepDum1)=1,IF(AND(YEAR(SepDum1+11)=AnulCalendaristic,MONTH(SepDum1+11)=9),SepDum1+11,\"\"),IF(AND(YEAR(SepDum1+18)=AnulCalendaristic,MONTH(SepDum1+18)=9),SepDum1+18,\"\"))","v":"2019-09-12"},{"$f":"IF(DAY(SepDum1)=1,IF(AND(YEAR(SepDum1+12)=AnulCalendaristic,MONTH(SepDum1+12)=9),SepDum1+12,\"\"),IF(AND(YEAR(SepDum1+19)=AnulCalendaristic,MONTH(SepDum1+19)=9),SepDum1+19,\"\"))","v":"2019-09-13"},{"$f":"IF(DAY(SepDum1)=1,IF(AND(YEAR(SepDum1+13)=AnulCalendaristic,MONTH(SepDum1+13)=9),SepDum1+13,\"\"),IF(AND(YEAR(SepDum1+20)=AnulCalendaristic,MONTH(SepDum1+20)=9),SepDum1+20,\"\"))","v":"2019-09-14"},{"$f":"IF(DAY(SepDum1)=1,IF(AND(YEAR(SepDum1+14)=AnulCalendaristic,MONTH(SepDum1+14)=9),SepDum1+14,\"\"),IF(AND(YEAR(SepDum1+21)=AnulCalendaristic,MONTH(SepDum1+21)=9),SepDum1+21,\"\"))","v":"2019-09-15"},null,null,{"$f":"IF(DAY(OctDum1)=1,IF(AND(YEAR(OctDum1+8)=AnulCalendaristic,MONTH(OctDum1+8)=10),OctDum1+8,\"\"),IF(AND(YEAR(OctDum1+15)=AnulCalendaristic,MONTH(OctDum1+15)=10),OctDum1+15,\"\"))","v":"2019-10-14"},{"$f":"IF(DAY(OctDum1)=1,IF(AND(YEAR(OctDum1+9)=AnulCalendaristic,MONTH(OctDum1+9)=10),OctDum1+9,\"\"),IF(AND(YEAR(OctDum1+16)=AnulCalendaristic,MONTH(OctDum1+16)=10),OctDum1+16,\"\"))","v":"2019-10-15"},{"$f":"IF(DAY(OctDum1)=1,IF(AND(YEAR(OctDum1+10)=AnulCalendaristic,MONTH(OctDum1+10)=10),OctDum1+10,\"\"),IF(AND(YEAR(OctDum1+17)=AnulCalendaristic,MONTH(OctDum1+17)=10),OctDum1+17,\"\"))","v":"2019-10-16"},{"$f":"IF(DAY(OctDum1)=1,IF(AND(YEAR(OctDum1+11)=AnulCalendaristic,MONTH(OctDum1+11)=10),OctDum1+11,\"\"),IF(AND(YEAR(OctDum1+18)=AnulCalendaristic,MONTH(OctDum1+18)=10),OctDum1+18,\"\"))","v":"2019-10-17"},{"$f":"IF(DAY(OctDum1)=1,IF(AND(YEAR(OctDum1+12)=AnulCalendaristic,MONTH(OctDum1+12)=10),OctDum1+12,\"\"),IF(AND(YEAR(OctDum1+19)=AnulCalendaristic,MONTH(OctDum1+19)=10),OctDum1+19,\"\"))","v":"2019-10-18"},{"$f":"IF(DAY(OctDum1)=1,IF(AND(YEAR(OctDum1+13)=AnulCalendaristic,MONTH(OctDum1+13)=10),OctDum1+13,\"\"),IF(AND(YEAR(OctDum1+20)=AnulCalendaristic,MONTH(OctDum1+20)=10),OctDum1+20,\"\"))","v":"2019-10-19"},{"$f":"IF(DAY(OctDum1)=1,IF(AND(YEAR(OctDum1+14)=AnulCalendaristic,MONTH(OctDum1+14)=10),OctDum1+14,\"\"),IF(AND(YEAR(OctDum1+21)=AnulCalendaristic,MONTH(OctDum1+21)=10),OctDum1+21,\"\"))","v":"2019-10-20"},null,null,{"$f":"IF(DAY(NovDum1)=1,IF(AND(YEAR(NovDum1+8)=AnulCalendaristic,MONTH(NovDum1+8)=11),NovDum1+8,\"\"),IF(AND(YEAR(NovDum1+15)=AnulCalendaristic,MONTH(NovDum1+15)=11),NovDum1+15,\"\"))","v":"2019-11-11"},{"$f":"IF(DAY(NovDum1)=1,IF(AND(YEAR(NovDum1+9)=AnulCalendaristic,MONTH(NovDum1+9)=11),NovDum1+9,\"\"),IF(AND(YEAR(NovDum1+16)=AnulCalendaristic,MONTH(NovDum1+16)=11),NovDum1+16,\"\"))","v":"2019-11-12"},{"$f":"IF(DAY(NovDum1)=1,IF(AND(YEAR(NovDum1+10)=AnulCalendaristic,MONTH(NovDum1+10)=11),NovDum1+10,\"\"),IF(AND(YEAR(NovDum1+17)=AnulCalendaristic,MONTH(NovDum1+17)=11),NovDum1+17,\"\"))","v":"2019-11-13"},{"$f":"IF(DAY(NovDum1)=1,IF(AND(YEAR(NovDum1+11)=AnulCalendaristic,MONTH(NovDum1+11)=11),NovDum1+11,\"\"),IF(AND(YEAR(NovDum1+18)=AnulCalendaristic,MONTH(NovDum1+18)=11),NovDum1+18,\"\"))","v":"2019-11-14"},{"$f":"IF(DAY(NovDum1)=1,IF(AND(YEAR(NovDum1+12)=AnulCalendaristic,MONTH(NovDum1+12)=11),NovDum1+12,\"\"),IF(AND(YEAR(NovDum1+19)=AnulCalendaristic,MONTH(NovDum1+19)=11),NovDum1+19,\"\"))","v":"2019-11-15"},{"$f":"IF(DAY(NovDum1)=1,IF(AND(YEAR(NovDum1+13)=AnulCalendaristic,MONTH(NovDum1+13)=11),NovDum1+13,\"\"),IF(AND(YEAR(NovDum1+20)=AnulCalendaristic,MONTH(NovDum1+20)=11),NovDum1+20,\"\"))","v":"2019-11-16"},{"$f":"IF(DAY(NovDum1)=1,IF(AND(YEAR(NovDum1+14)=AnulCalendaristic,MONTH(NovDum1+14)=11),NovDum1+14,\"\"),IF(AND(YEAR(NovDum1+21)=AnulCalendaristic,MONTH(NovDum1+21)=11),NovDum1+21,\"\"))","v":"2019-11-17"},null,null,{"$f":"IF(DAY(DecDum1)=1,IF(AND(YEAR(DecDum1+8)=AnulCalendaristic,MONTH(DecDum1+8)=12),DecDum1+8,\"\"),IF(AND(YEAR(DecDum1+15)=AnulCalendaristic,MONTH(DecDum1+15)=12),DecDum1+15,\"\"))","v":"2019-12-09"},{"$f":"IF(DAY(DecDum1)=1,IF(AND(YEAR(DecDum1+9)=AnulCalendaristic,MONTH(DecDum1+9)=12),DecDum1+9,\"\"),IF(AND(YEAR(DecDum1+16)=AnulCalendaristic,MONTH(DecDum1+16)=12),DecDum1+16,\"\"))","v":"2019-12-10"},{"$f":"IF(DAY(DecDum1)=1,IF(AND(YEAR(DecDum1+10)=AnulCalendaristic,MONTH(DecDum1+10)=12),DecDum1+10,\"\"),IF(AND(YEAR(DecDum1+17)=AnulCalendaristic,MONTH(DecDum1+17)=12),DecDum1+17,\"\"))","v":"2019-12-11"},{"$f":"IF(DAY(DecDum1)=1,IF(AND(YEAR(DecDum1+11)=AnulCalendaristic,MONTH(DecDum1+11)=12),DecDum1+11,\"\"),IF(AND(YEAR(DecDum1+18)=AnulCalendaristic,MONTH(DecDum1+18)=12),DecDum1+18,\"\"))","v":"2019-12-12"},{"$f":"IF(DAY(DecDum1)=1,IF(AND(YEAR(DecDum1+12)=AnulCalendaristic,MONTH(DecDum1+12)=12),DecDum1+12,\"\"),IF(AND(YEAR(DecDum1+19)=AnulCalendaristic,MONTH(DecDum1+19)=12),DecDum1+19,\"\"))","v":"2019-12-13"},{"$f":"IF(DAY(DecDum1)=1,IF(AND(YEAR(DecDum1+13)=AnulCalendaristic,MONTH(DecDum1+13)=12),DecDum1+13,\"\"),IF(AND(YEAR(DecDum1+20)=AnulCalendaristic,MONTH(DecDum1+20)=12),DecDum1+20,\"\"))","v":"2019-12-14"},{"$f":"IF(DAY(DecDum1)=1,IF(AND(YEAR(DecDum1+14)=AnulCalendaristic,MONTH(DecDum1+14)=12),DecDum1+14,\"\"),IF(AND(YEAR(DecDum1+21)=AnulCalendaristic,MONTH(DecDum1+21)=12),DecDum1+21,\"\"))","v":"2019-12-15"}]
[null,null,{"$f":"IF(DAY(SepDum1)=1,IF(AND(YEAR(SepDum1+15)=AnulCalendaristic,MONTH(SepDum1+15)=9),SepDum1+15,\"\"),IF(AND(YEAR(SepDum1+22)=AnulCalendaristic,MONTH(SepDum1+22)=9),SepDum1+22,\"\"))","v":"2019-09-16"},{"$f":"IF(DAY(SepDum1)=1,IF(AND(YEAR(SepDum1+16)=AnulCalendaristic,MONTH(SepDum1+16)=9),SepDum1+16,\"\"),IF(AND(YEAR(SepDum1+23)=AnulCalendaristic,MONTH(SepDum1+23)=9),SepDum1+23,\"\"))","v":"2019-09-17"},{"$f":"IF(DAY(SepDum1)=1,IF(AND(YEAR(SepDum1+17)=AnulCalendaristic,MONTH(SepDum1+17)=9),SepDum1+17,\"\"),IF(AND(YEAR(SepDum1+24)=AnulCalendaristic,MONTH(SepDum1+24)=9),SepDum1+24,\"\"))","v":"2019-09-18"},{"$f":"IF(DAY(SepDum1)=1,IF(AND(YEAR(SepDum1+18)=AnulCalendaristic,MONTH(SepDum1+18)=9),SepDum1+18,\"\"),IF(AND(YEAR(SepDum1+25)=AnulCalendaristic,MONTH(SepDum1+25)=9),SepDum1+25,\"\"))","v":"2019-09-19"},{"$f":"IF(DAY(SepDum1)=1,IF(AND(YEAR(SepDum1+19)=AnulCalendaristic,MONTH(SepDum1+19)=9),SepDum1+19,\"\"),IF(AND(YEAR(SepDum1+26)=AnulCalendaristic,MONTH(SepDum1+26)=9),SepDum1+26,\"\"))","v":"2019-09-20"},{"$f":"IF(DAY(SepDum1)=1,IF(AND(YEAR(SepDum1+20)=AnulCalendaristic,MONTH(SepDum1+20)=9),SepDum1+20,\"\"),IF(AND(YEAR(SepDum1+27)=AnulCalendaristic,MONTH(SepDum1+27)=9),SepDum1+27,\"\"))","v":"2019-09-21"},{"$f":"IF(DAY(SepDum1)=1,IF(AND(YEAR(SepDum1+21)=AnulCalendaristic,MONTH(SepDum1+21)=9),SepDum1+21,\"\"),IF(AND(YEAR(SepDum1+28)=AnulCalendaristic,MONTH(SepDum1+28)=9),SepDum1+28,\"\"))","v":"2019-09-22"},null,null,{"$f":"IF(DAY(OctDum1)=1,IF(AND(YEAR(OctDum1+15)=AnulCalendaristic,MONTH(OctDum1+15)=10),OctDum1+15,\"\"),IF(AND(YEAR(OctDum1+22)=AnulCalendaristic,MONTH(OctDum1+22)=10),OctDum1+22,\"\"))","v":"2019-10-21"},{"$f":"IF(DAY(OctDum1)=1,IF(AND(YEAR(OctDum1+16)=AnulCalendaristic,MONTH(OctDum1+16)=10),OctDum1+16,\"\"),IF(AND(YEAR(OctDum1+23)=AnulCalendaristic,MONTH(OctDum1+23)=10),OctDum1+23,\"\"))","v":"2019-10-22"},{"$f":"IF(DAY(OctDum1)=1,IF(AND(YEAR(OctDum1+17)=AnulCalendaristic,MONTH(OctDum1+17)=10),OctDum1+17,\"\"),IF(AND(YEAR(OctDum1+24)=AnulCalendaristic,MONTH(OctDum1+24)=10),OctDum1+24,\"\"))","v":"2019-10-23"},{"$f":"IF(DAY(OctDum1)=1,IF(AND(YEAR(OctDum1+18)=AnulCalendaristic,MONTH(OctDum1+18)=10),OctDum1+18,\"\"),IF(AND(YEAR(OctDum1+25)=AnulCalendaristic,MONTH(OctDum1+25)=10),OctDum1+25,\"\"))","v":"2019-10-24"},{"$f":"IF(DAY(OctDum1)=1,IF(AND(YEAR(OctDum1+19)=AnulCalendaristic,MONTH(OctDum1+19)=10),OctDum1+19,\"\"),IF(AND(YEAR(OctDum1+26)=AnulCalendaristic,MONTH(OctDum1+26)=10),OctDum1+26,\"\"))","v":"2019-10-25"},{"$f":"IF(DAY(OctDum1)=1,IF(AND(YEAR(OctDum1+20)=AnulCalendaristic,MONTH(OctDum1+20)=10),OctDum1+20,\"\"),IF(AND(YEAR(OctDum1+27)=AnulCalendaristic,MONTH(OctDum1+27)=10),OctDum1+27,\"\"))","v":"2019-10-26"},{"$f":"IF(DAY(OctDum1)=1,IF(AND(YEAR(OctDum1+21)=AnulCalendaristic,MONTH(OctDum1+21)=10),OctDum1+21,\"\"),IF(AND(YEAR(OctDum1+28)=AnulCalendaristic,MONTH(OctDum1+28)=10),OctDum1+28,\"\"))","v":"2019-10-27"},null,null,{"$f":"IF(DAY(NovDum1)=1,IF(AND(YEAR(NovDum1+15)=AnulCalendaristic,MONTH(NovDum1+15)=11),NovDum1+15,\"\"),IF(AND(YEAR(NovDum1+22)=AnulCalendaristic,MONTH(NovDum1+22)=11),NovDum1+22,\"\"))","v":"2019-11-18"},{"$f":"IF(DAY(NovDum1)=1,IF(AND(YEAR(NovDum1+16)=AnulCalendaristic,MONTH(NovDum1+16)=11),NovDum1+16,\"\"),IF(AND(YEAR(NovDum1+23)=AnulCalendaristic,MONTH(NovDum1+23)=11),NovDum1+23,\"\"))","v":"2019-11-19"},{"$f":"IF(DAY(NovDum1)=1,IF(AND(YEAR(NovDum1+17)=AnulCalendaristic,MONTH(NovDum1+17)=11),NovDum1+17,\"\"),IF(AND(YEAR(NovDum1+24)=AnulCalendaristic,MONTH(NovDum1+24)=11),NovDum1+24,\"\"))","v":"2019-11-20"},{"$f":"IF(DAY(NovDum1)=1,IF(AND(YEAR(NovDum1+18)=AnulCalendaristic,MONTH(NovDum1+18)=11),NovDum1+18,\"\"),IF(AND(YEAR(NovDum1+25)=AnulCalendaristic,MONTH(NovDum1+25)=11),NovDum1+25,\"\"))","v":"2019-11-21"},{"$f":"IF(DAY(NovDum1)=1,IF(AND(YEAR(NovDum1+19)=AnulCalendaristic,MONTH(NovDum1+19)=11),NovDum1+19,\"\"),IF(AND(YEAR(NovDum1+26)=AnulCalendaristic,MONTH(NovDum1+26)=11),NovDum1+26,\"\"))","v":"2019-11-22"},{"$f":"IF(DAY(NovDum1)=1,IF(AND(YEAR(NovDum1+20)=AnulCalendaristic,MONTH(NovDum1+20)=11),NovDum1+20,\"\"),IF(AND(YEAR(NovDum1+27)=AnulCalendaristic,MONTH(NovDum1+27)=11),NovDum1+27,\"\"))","v":"2019-11-23"},{"$f":"IF(DAY(NovDum1)=1,IF(AND(YEAR(NovDum1+21)=AnulCalendaristic,MONTH(NovDum1+21)=11),NovDum1+21,\"\"),IF(AND(YEAR(NovDum1+28)=AnulCalendaristic,MONTH(NovDum1+28)=11),NovDum1+28,\"\"))","v":"2019-11-24"},null,null,{"$f":"IF(DAY(DecDum1)=1,IF(AND(YEAR(DecDum1+15)=AnulCalendaristic,MONTH(DecDum1+15)=12),DecDum1+15,\"\"),IF(AND(YEAR(DecDum1+22)=AnulCalendaristic,MONTH(DecDum1+22)=12),DecDum1+22,\"\"))","v":"2019-12-16"},{"$f":"IF(DAY(DecDum1)=1,IF(AND(YEAR(DecDum1+16)=AnulCalendaristic,MONTH(DecDum1+16)=12),DecDum1+16,\"\"),IF(AND(YEAR(DecDum1+23)=AnulCalendaristic,MONTH(DecDum1+23)=12),DecDum1+23,\"\"))","v":"2019-12-17"},{"$f":"IF(DAY(DecDum1)=1,IF(AND(YEAR(DecDum1+17)=AnulCalendaristic,MONTH(DecDum1+17)=12),DecDum1+17,\"\"),IF(AND(YEAR(DecDum1+24)=AnulCalendaristic,MONTH(DecDum1+24)=12),DecDum1+24,\"\"))","v":"2019-12-18"},{"$f":"IF(DAY(DecDum1)=1,IF(AND(YEAR(DecDum1+18)=AnulCalendaristic,MONTH(DecDum1+18)=12),DecDum1+18,\"\"),IF(AND(YEAR(DecDum1+25)=AnulCalendaristic,MONTH(DecDum1+25)=12),DecDum1+25,\"\"))","v":"2019-12-19"},{"$f":"IF(DAY(DecDum1)=1,IF(AND(YEAR(DecDum1+19)=AnulCalendaristic,MONTH(DecDum1+19)=12),DecDum1+19,\"\"),IF(AND(YEAR(DecDum1+26)=AnulCalendaristic,MONTH(DecDum1+26)=12),DecDum1+26,\"\"))","v":"2019-12-20"},{"$f":"IF(DAY(DecDum1)=1,IF(AND(YEAR(DecDum1+20)=AnulCalendaristic,MONTH(DecDum1+20)=12),DecDum1+20,\"\"),IF(AND(YEAR(DecDum1+27)=AnulCalendaristic,MONTH(DecDum1+27)=12),DecDum1+27,\"\"))","v":"2019-12-21"},{"$f":"IF(DAY(DecDum1)=1,IF(AND(YEAR(DecDum1+21)=AnulCalendaristic,MONTH(DecDum1+21)=12),DecDum1+21,\"\"),IF(AND(YEAR(DecDum1+28)=AnulCalendaristic,MONTH(DecDum1+28)=12),DecDum1+28,\"\"))","v":"2019-12-22"}]
[null,null,{"$f":"IF(DAY(SepDum1)=1,IF(AND(YEAR(SepDum1+22)=AnulCalendaristic,MONTH(SepDum1+22)=9),SepDum1+22,\"\"),IF(AND(YEAR(SepDum1+29)=AnulCalendaristic,MONTH(SepDum1+29)=9),SepDum1+29,\"\"))","v":"2019-09-23"},{"$f":"IF(DAY(SepDum1)=1,IF(AND(YEAR(SepDum1+23)=AnulCalendaristic,MONTH(SepDum1+23)=9),SepDum1+23,\"\"),IF(AND(YEAR(SepDum1+30)=AnulCalendaristic,MONTH(SepDum1+30)=9),SepDum1+30,\"\"))","v":"2019-09-24"},{"$f":"IF(DAY(SepDum1)=1,IF(AND(YEAR(SepDum1+24)=AnulCalendaristic,MONTH(SepDum1+24)=9),SepDum1+24,\"\"),IF(AND(YEAR(SepDum1+31)=AnulCalendaristic,MONTH(SepDum1+31)=9),SepDum1+31,\"\"))","v":"2019-09-25"},{"$f":"IF(DAY(SepDum1)=1,IF(AND(YEAR(SepDum1+25)=AnulCalendaristic,MONTH(SepDum1+25)=9),SepDum1+25,\"\"),IF(AND(YEAR(SepDum1+32)=AnulCalendaristic,MONTH(SepDum1+32)=9),SepDum1+32,\"\"))","v":"2019-09-26"},{"$f":"IF(DAY(SepDum1)=1,IF(AND(YEAR(SepDum1+26)=AnulCalendaristic,MONTH(SepDum1+26)=9),SepDum1+26,\"\"),IF(AND(YEAR(SepDum1+33)=AnulCalendaristic,MONTH(SepDum1+33)=9),SepDum1+33,\"\"))","v":"2019-09-27"},{"$f":"IF(DAY(SepDum1)=1,IF(AND(YEAR(SepDum1+27)=AnulCalendaristic,MONTH(SepDum1+27)=9),SepDum1+27,\"\"),IF(AND(YEAR(SepDum1+34)=AnulCalendaristic,MONTH(SepDum1+34)=9),SepDum1+34,\"\"))","v":"2019-09-28"},{"$f":"IF(DAY(SepDum1)=1,IF(AND(YEAR(SepDum1+28)=AnulCalendaristic,MONTH(SepDum1+28)=9),SepDum1+28,\"\"),IF(AND(YEAR(SepDum1+35)=AnulCalendaristic,MONTH(SepDum1+35)=9),SepDum1+35,\"\"))","v":"2019-09-29"},null,null,{"$f":"IF(DAY(OctDum1)=1,IF(AND(YEAR(OctDum1+22)=AnulCalendaristic,MONTH(OctDum1+22)=10),OctDum1+22,\"\"),IF(AND(YEAR(OctDum1+29)=AnulCalendaristic,MONTH(OctDum1+29)=10),OctDum1+29,\"\"))","v":"2019-10-28"},{"$f":"IF(DAY(OctDum1)=1,IF(AND(YEAR(OctDum1+23)=AnulCalendaristic,MONTH(OctDum1+23)=10),OctDum1+23,\"\"),IF(AND(YEAR(OctDum1+30)=AnulCalendaristic,MONTH(OctDum1+30)=10),OctDum1+30,\"\"))","v":"2019-10-29"},{"$f":"IF(DAY(OctDum1)=1,IF(AND(YEAR(OctDum1+24)=AnulCalendaristic,MONTH(OctDum1+24)=10),OctDum1+24,\"\"),IF(AND(YEAR(OctDum1+31)=AnulCalendaristic,MONTH(OctDum1+31)=10),OctDum1+31,\"\"))","v":"2019-10-30"},{"$f":"IF(DAY(OctDum1)=1,IF(AND(YEAR(OctDum1+25)=AnulCalendaristic,MONTH(OctDum1+25)=10),OctDum1+25,\"\"),IF(AND(YEAR(OctDum1+32)=AnulCalendaristic,MONTH(OctDum1+32)=10),OctDum1+32,\"\"))","v":"2019-10-31"},{"$f":"IF(DAY(OctDum1)=1,IF(AND(YEAR(OctDum1+26)=AnulCalendaristic,MONTH(OctDum1+26)=10),OctDum1+26,\"\"),IF(AND(YEAR(OctDum1+33)=AnulCalendaristic,MONTH(OctDum1+33)=10),OctDum1+33,\"\"))","v":""},{"$f":"IF(DAY(OctDum1)=1,IF(AND(YEAR(OctDum1+27)=AnulCalendaristic,MONTH(OctDum1+27)=10),OctDum1+27,\"\"),IF(AND(YEAR(OctDum1+34)=AnulCalendaristic,MONTH(OctDum1+34)=10),OctDum1+34,\"\"))","v":""},{"$f":"IF(DAY(OctDum1)=1,IF(AND(YEAR(OctDum1+28)=AnulCalendaristic,MONTH(OctDum1+28)=10),OctDum1+28,\"\"),IF(AND(YEAR(OctDum1+35)=AnulCalendaristic,MONTH(OctDum1+35)=10),OctDum1+35,\"\"))","v":""},null,null,{"$f":"IF(DAY(NovDum1)=1,IF(AND(YEAR(NovDum1+22)=AnulCalendaristic,MONTH(NovDum1+22)=11),NovDum1+22,\"\"),IF(AND(YEAR(NovDum1+29)=AnulCalendaristic,MONTH(NovDum1+29)=11),NovDum1+29,\"\"))","v":"2019-11-25"},{"$f":"IF(DAY(NovDum1)=1,IF(AND(YEAR(NovDum1+23)=AnulCalendaristic,MONTH(NovDum1+23)=11),NovDum1+23,\"\"),IF(AND(YEAR(NovDum1+30)=AnulCalendaristic,MONTH(NovDum1+30)=11),NovDum1+30,\"\"))","v":"2019-11-26"},{"$f":"IF(DAY(NovDum1)=1,IF(AND(YEAR(NovDum1+24)=AnulCalendaristic,MONTH(NovDum1+24)=11),NovDum1+24,\"\"),IF(AND(YEAR(NovDum1+31)=AnulCalendaristic,MONTH(NovDum1+31)=11),NovDum1+31,\"\"))","v":"2019-11-27"},{"$f":"IF(DAY(NovDum1)=1,IF(AND(YEAR(NovDum1+25)=AnulCalendaristic,MONTH(NovDum1+25)=11),NovDum1+25,\"\"),IF(AND(YEAR(NovDum1+32)=AnulCalendaristic,MONTH(NovDum1+32)=11),NovDum1+32,\"\"))","v":"2019-11-28"},{"$f":"IF(DAY(NovDum1)=1,IF(AND(YEAR(NovDum1+26)=AnulCalendaristic,MONTH(NovDum1+26)=11),NovDum1+26,\"\"),IF(AND(YEAR(NovDum1+33)=AnulCalendaristic,MONTH(NovDum1+33)=11),NovDum1+33,\"\"))","v":"2019-11-29"},{"$f":"IF(DAY(NovDum1)=1,IF(AND(YEAR(NovDum1+27)=AnulCalendaristic,MONTH(NovDum1+27)=11),NovDum1+27,\"\"),IF(AND(YEAR(NovDum1+34)=AnulCalendaristic,MONTH(NovDum1+34)=11),NovDum1+34,\"\"))","v":"2019-11-30"},{"$f":"IF(DAY(NovDum1)=1,IF(AND(YEAR(NovDum1+28)=AnulCalendaristic,MONTH(NovDum1+28)=11),NovDum1+28,\"\"),IF(AND(YEAR(NovDum1+35)=AnulCalendaristic,MONTH(NovDum1+35)=11),NovDum1+35,\"\"))","v":""},null,null,{"$f":"IF(DAY(DecDum1)=1,IF(AND(YEAR(DecDum1+22)=AnulCalendaristic,MONTH(DecDum1+22)=12),DecDum1+22,\"\"),IF(AND(YEAR(DecDum1+29)=AnulCalendaristic,MONTH(DecDum1+29)=12),DecDum1+29,\"\"))","v":"2019-12-23"},{"$f":"IF(DAY(DecDum1)=1,IF(AND(YEAR(DecDum1+23)=AnulCalendaristic,MONTH(DecDum1+23)=12),DecDum1+23,\"\"),IF(AND(YEAR(DecDum1+30)=AnulCalendaristic,MONTH(DecDum1+30)=12),DecDum1+30,\"\"))","v":"2019-12-24"},{"$f":"IF(DAY(DecDum1)=1,IF(AND(YEAR(DecDum1+24)=AnulCalendaristic,MONTH(DecDum1+24)=12),DecDum1+24,\"\"),IF(AND(YEAR(DecDum1+31)=AnulCalendaristic,MONTH(DecDum1+31)=12),DecDum1+31,\"\"))","v":"2019-12-25"},{"$f":"IF(DAY(DecDum1)=1,IF(AND(YEAR(DecDum1+25)=AnulCalendaristic,MONTH(DecDum1+25)=12),DecDum1+25,\"\"),IF(AND(YEAR(DecDum1+32)=AnulCalendaristic,MONTH(DecDum1+32)=12),DecDum1+32,\"\"))","v":"2019-12-26"},{"$f":"IF(DAY(DecDum1)=1,IF(AND(YEAR(DecDum1+26)=AnulCalendaristic,MONTH(DecDum1+26)=12),DecDum1+26,\"\"),IF(AND(YEAR(DecDum1+33)=AnulCalendaristic,MONTH(DecDum1+33)=12),DecDum1+33,\"\"))","v":"2019-12-27"},{"$f":"IF(DAY(DecDum1)=1,IF(AND(YEAR(DecDum1+27)=AnulCalendaristic,MONTH(DecDum1+27)=12),DecDum1+27,\"\"),IF(AND(YEAR(DecDum1+34)=AnulCalendaristic,MONTH(DecDum1+34)=12),DecDum1+34,\"\"))","v":"2019-12-28"},{"$f":"IF(DAY(DecDum1)=1,IF(AND(YEAR(DecDum1+28)=AnulCalendaristic,MONTH(DecDum1+28)=12),DecDum1+28,\"\"),IF(AND(YEAR(DecDum1+35)=AnulCalendaristic,MONTH(DecDum1+35)=12),DecDum1+35,\"\"))","v":"2019-12-29"}]
[null,null,{"$f":"IF(DAY(SepDum1)=1,IF(AND(YEAR(SepDum1+29)=AnulCalendaristic,MONTH(SepDum1+29)=9),SepDum1+29,\"\"),IF(AND(YEAR(SepDum1+36)=AnulCalendaristic,MONTH(SepDum1+36)=9),SepDum1+36,\"\"))","v":"2019-09-30"},{"$f":"IF(DAY(SepDum1)=1,IF(AND(YEAR(SepDum1+30)=AnulCalendaristic,MONTH(SepDum1+30)=9),SepDum1+30,\"\"),IF(AND(YEAR(SepDum1+37)=AnulCalendaristic,MONTH(SepDum1+37)=9),SepDum1+37,\"\"))","v":""},{"$f":"IF(DAY(SepDum1)=1,IF(AND(YEAR(SepDum1+31)=AnulCalendaristic,MONTH(SepDum1+31)=9),SepDum1+31,\"\"),IF(AND(YEAR(SepDum1+38)=AnulCalendaristic,MONTH(SepDum1+38)=9),SepDum1+38,\"\"))","v":""},{"$f":"IF(DAY(SepDum1)=1,IF(AND(YEAR(SepDum1+32)=AnulCalendaristic,MONTH(SepDum1+32)=9),SepDum1+32,\"\"),IF(AND(YEAR(SepDum1+39)=AnulCalendaristic,MONTH(SepDum1+39)=9),SepDum1+39,\"\"))","v":""},{"$f":"IF(DAY(SepDum1)=1,IF(AND(YEAR(SepDum1+33)=AnulCalendaristic,MONTH(SepDum1+33)=9),SepDum1+33,\"\"),IF(AND(YEAR(SepDum1+40)=AnulCalendaristic,MONTH(SepDum1+40)=9),SepDum1+40,\"\"))","v":""},{"$f":"IF(DAY(SepDum1)=1,IF(AND(YEAR(SepDum1+34)=AnulCalendaristic,MONTH(SepDum1+34)=9),SepDum1+34,\"\"),IF(AND(YEAR(SepDum1+41)=AnulCalendaristic,MONTH(SepDum1+41)=9),SepDum1+41,\"\"))","v":""},{"$f":"IF(DAY(SepDum1)=1,IF(AND(YEAR(SepDum1+35)=AnulCalendaristic,MONTH(SepDum1+35)=9),SepDum1+35,\"\"),IF(AND(YEAR(SepDum1+42)=AnulCalendaristic,MONTH(SepDum1+42)=9),SepDum1+42,\"\"))","v":""},null,null,{"$f":"IF(DAY(OctDum1)=1,IF(AND(YEAR(OctDum1+29)=AnulCalendaristic,MONTH(OctDum1+29)=10),OctDum1+29,\"\"),IF(AND(YEAR(OctDum1+36)=AnulCalendaristic,MONTH(OctDum1+36)=10),OctDum1+36,\"\"))","v":""},{"$f":"IF(DAY(OctDum1)=1,IF(AND(YEAR(OctDum1+30)=AnulCalendaristic,MONTH(OctDum1+30)=10),OctDum1+30,\"\"),IF(AND(YEAR(OctDum1+37)=AnulCalendaristic,MONTH(OctDum1+37)=10),OctDum1+37,\"\"))","v":""},{"$f":"IF(DAY(OctDum1)=1,IF(AND(YEAR(OctDum1+31)=AnulCalendaristic,MONTH(OctDum1+31)=10),OctDum1+31,\"\"),IF(AND(YEAR(OctDum1+38)=AnulCalendaristic,MONTH(OctDum1+38)=10),OctDum1+38,\"\"))","v":""},{"$f":"IF(DAY(OctDum1)=1,IF(AND(YEAR(OctDum1+32)=AnulCalendaristic,MONTH(OctDum1+32)=10),OctDum1+32,\"\"),IF(AND(YEAR(OctDum1+39)=AnulCalendaristic,MONTH(OctDum1+39)=10),OctDum1+39,\"\"))","v":""},{"$f":"IF(DAY(OctDum1)=1,IF(AND(YEAR(OctDum1+33)=AnulCalendaristic,MONTH(OctDum1+33)=10),OctDum1+33,\"\"),IF(AND(YEAR(OctDum1+40)=AnulCalendaristic,MONTH(OctDum1+40)=10),OctDum1+40,\"\"))","v":""},{"$f":"IF(DAY(OctDum1)=1,IF(AND(YEAR(OctDum1+34)=AnulCalendaristic,MONTH(OctDum1+34)=10),OctDum1+34,\"\"),IF(AND(YEAR(OctDum1+41)=AnulCalendaristic,MONTH(OctDum1+41)=10),OctDum1+41,\"\"))","v":""},{"$f":"IF(DAY(OctDum1)=1,IF(AND(YEAR(OctDum1+35)=AnulCalendaristic,MONTH(OctDum1+35)=10),OctDum1+35,\"\"),IF(AND(YEAR(OctDum1+42)=AnulCalendaristic,MONTH(OctDum1+42)=10),OctDum1+42,\"\"))","v":""},null,null,{"$f":"IF(DAY(NovDum1)=1,IF(AND(YEAR(NovDum1+29)=AnulCalendaristic,MONTH(NovDum1+29)=11),NovDum1+29,\"\"),IF(AND(YEAR(NovDum1+36)=AnulCalendaristic,MONTH(NovDum1+36)=11),NovDum1+36,\"\"))","v":""},{"$f":"IF(DAY(NovDum1)=1,IF(AND(YEAR(NovDum1+30)=AnulCalendaristic,MONTH(NovDum1+30)=11),NovDum1+30,\"\"),IF(AND(YEAR(NovDum1+37)=AnulCalendaristic,MONTH(NovDum1+37)=11),NovDum1+37,\"\"))","v":""},{"$f":"IF(DAY(NovDum1)=1,IF(AND(YEAR(NovDum1+31)=AnulCalendaristic,MONTH(NovDum1+31)=11),NovDum1+31,\"\"),IF(AND(YEAR(NovDum1+38)=AnulCalendaristic,MONTH(NovDum1+38)=11),NovDum1+38,\"\"))","v":""},{"$f":"IF(DAY(NovDum1)=1,IF(AND(YEAR(NovDum1+32)=AnulCalendaristic,MONTH(NovDum1+32)=11),NovDum1+32,\"\"),IF(AND(YEAR(NovDum1+39)=AnulCalendaristic,MONTH(NovDum1+39)=11),NovDum1+39,\"\"))","v":""},{"$f":"IF(DAY(NovDum1)=1,IF(AND(YEAR(NovDum1+33)=AnulCalendaristic,MONTH(NovDum1+33)=11),NovDum1+33,\"\"),IF(AND(YEAR(NovDum1+40)=AnulCalendaristic,MONTH(NovDum1+40)=11),NovDum1+40,\"\"))","v":""},{"$f":"IF(DAY(NovDum1)=1,IF(AND(YEAR(NovDum1+34)=AnulCalendaristic,MONTH(NovDum1+34)=11),NovDum1+34,\"\"),IF(AND(YEAR(NovDum1+41)=AnulCalendaristic,MONTH(NovDum1+41)=11),NovDum1+41,\"\"))","v":""},{"$f":"IF(DAY(NovDum1)=1,IF(AND(YEAR(NovDum1+35)=AnulCalendaristic,MONTH(NovDum1+35)=11),NovDum1+35,\"\"),IF(AND(YEAR(NovDum1+42)=AnulCalendaristic,MONTH(NovDum1+42)=11),NovDum1+42,\"\"))","v":""},null,null,{"$f":"IF(DAY(DecDum1)=1,IF(AND(YEAR(DecDum1+29)=AnulCalendaristic,MONTH(DecDum1+29)=12),DecDum1+29,\"\"),IF(AND(YEAR(DecDum1+36)=AnulCalendaristic,MONTH(DecDum1+36)=12),DecDum1+36,\"\"))","v":"2019-12-30"},{"$f":"IF(DAY(DecDum1)=1,IF(AND(YEAR(DecDum1+30)=AnulCalendaristic,MONTH(DecDum1+30)=12),DecDum1+30,\"\"),IF(AND(YEAR(DecDum1+37)=AnulCalendaristic,MONTH(DecDum1+37)=12),DecDum1+37,\"\"))","v":"2019-12-31"},{"$f":"IF(DAY(DecDum1)=1,IF(AND(YEAR(DecDum1+31)=AnulCalendaristic,MONTH(DecDum1+31)=12),DecDum1+31,\"\"),IF(AND(YEAR(DecDum1+38)=AnulCalendaristic,MONTH(DecDum1+38)=12),DecDum1+38,\"\"))","v":""},{"$f":"IF(DAY(DecDum1)=1,IF(AND(YEAR(DecDum1+32)=AnulCalendaristic,MONTH(DecDum1+32)=12),DecDum1+32,\"\"),IF(AND(YEAR(DecDum1+39)=AnulCalendaristic,MONTH(DecDum1+39)=12),DecDum1+39,\"\"))","v":""},{"$f":"IF(DAY(DecDum1)=1,IF(AND(YEAR(DecDum1+33)=AnulCalendaristic,MONTH(DecDum1+33)=12),DecDum1+33,\"\"),IF(AND(YEAR(DecDum1+40)=AnulCalendaristic,MONTH(DecDum1+40)=12),DecDum1+40,\"\"))","v":""},{"$f":"IF(DAY(DecDum1)=1,IF(AND(YEAR(DecDum1+34)=AnulCalendaristic,MONTH(DecDum1+34)=12),DecDum1+34,\"\"),IF(AND(YEAR(DecDum1+41)=AnulCalendaristic,MONTH(DecDum1+41)=12),DecDum1+41,\"\"))","v":""},{"$f":"IF(DAY(DecDum1)=1,IF(AND(YEAR(DecDum1+35)=AnulCalendaristic,MONTH(DecDum1+35)=12),DecDum1+35,\"\"),IF(AND(YEAR(DecDum1+42)=AnulCalendaristic,MONTH(DecDum1+42)=12),DecDum1+42,\"\"))","v":""}]